{"text_format":"1","workbook":"xlsx","n_sheets":5,"sheets":["様式第1号 実施計画書"," 別紙 ","　別紙①（合同保育を実施）","別紙①（面積基準緩和)","別紙①（その他の場合） "],"not_rendered":{"charts":0,"images":0,"macros":1,"external_links":0,"defined_names":5,"comments":1,"pivot_tables":0},"unopened":[],"bounds":{"document_bytes":16777216,"sheet_cells":100000,"rows_first":2000,"rows_last":500,"rows_between":2000,"halvings":0,"cell_chars":16384,"cell_head_chars":4096},"cells_cut":0,"cells_raw":0,"read":"whole","date_system":"1900"}

{"sheet":"様式第1号 実施計画書","index":0,"n_rows":39,"n_cols":51,"rows_kept":39,"cut":false,"hidden":false,"merged":[[9,14,9,20],[12,1,12,40],[16,4,16,8],[14,1,14,40],[16,10,16,39],[9,21,9,36],[27,10,27,14],[28,10,28,14],[27,16,27,18],[28,16,28,18],[38,1,38,39],[28,28,28,30],[27,28,27,31],[28,24,28,27],[27,19,27,20],[28,19,28,20],[27,24,27,26],[39,1,43,39],[35,4,35,8],[29,10,31,40],[33,4,33,8],[37,1,37,40],[26,4,26,8],[22,10,24,39],[26,24,26,27],[26,28,26,31],[18,4,18,8],[19,10,19,11],[19,16,19,17],[19,19,19,20],[19,22,19,23],[19,33,19,34],[18,10,18,11],[19,12,19,14],[19,24,19,25],[19,26,19,28],[23,51,23,52],[23,53,23,54],[19,30,19,31],[4,1,4,7],[2,39,2,40],[6,14,7,20],[7,9,8,12],[8,14,8,20],[8,21,8,40],[2,29,2,30],[2,31,2,32],[2,33,2,34],[2,35,2,36],[2,37,2,38],[2,25,2,28],[6,21,7,40]]}
[null,null,null,null,null,null,null,null,null,null,null,null,null,null,null,null,null,null,null,null,null,null,null,null,null,null,null,null,null,null,null,null,null,null,null,null,null,null,null,null,"（様式第１号）",null,null,null,null,null,null,null,null,{"$f":"SUM(AX2:AX70)","v":14},"誤り合計チェック"]
[null,null,null,null,null,null,null,null,null,null,null,null,null,null,null,null,null,null,null,null,null,null,null,null,null,null,null,null,null,null,null,null,null,null,null,null,null,null,null,null,null,null,null,null,null,null,null,null,null,{"$f":"IF(ISBLANK(AD3),1,0)","v":1},"申請日の元号"]
[null,null,null,null,null,null,null,null,null,null,null,null,null,null,null,null,null,null,null,null,null,null,null,null,null,null,null,null,null,null,null,"年",null,null,null,"月",null,null,null,"日",null,null,null,null,null,null,null,null,null,{"$f":"IF(ISBLANK(AH3),1,0)","v":1},"申請日の年"]
[null,null,null,null,null,null,null,null,null,null,null,null,null,null,null,null,null,null,null,null,null,null,null,null,null,null,null,null,null,null,null,null,null,null,null,null,null,null,null,null,null,null,null,null,null,null,null,null,null,{"$f":"IF(ISBLANK(AH3),1,0)","v":1},"申請日の月"]
[null,"大阪市長",null,null,null,null,null,null,"様",null,null,null,null,null,null,null,null,null,null,null,null,null,null,null,null,null,null,null,null,null,null,null,null,null,null,null,null,null,null,null,null,null,null,null,null,null,null,null,null,{"$f":"IF(ISBLANK(AL3),1,0)","v":1},"申請日の日"]
[]
[null,null,null,null,null,null,null,null,null,null,null,null,null,null,"法人所在地",null,null,null,null,null,null,null,null,null,null,null,null,null,null,null,null,null,null,null,null,null,null,null,null,null,null,null,null,null,null,null,null,null,null,{"$f":"IF(ISBLANK(V7),1,0)","v":1},"法人所在地"]
[null,null,null,null,null,null,null,null,null,"届出者"]
[null,null,null,null,null,null,null,null,null,null,null,null,null,null,"法人名",null,null,null,null,null,null,null,null,null,null,null,null,null,null,null,null,null,null,null,null,null,null,null,null,null,null,null,null,null,null,null,null,null,null,{"$f":"IF(ISBLANK(V9),1,0)","v":1},"法人名"]
[null,null,null,null,null,null,null,null,null,null,null,null,null,null,"代表者職・氏名",null,null,null,null,null,null,null,null,null,null,null,null,null,null,null,null,null,null,null,null,null,null,null,null,null,null,null,null,null,null,null,null,null,null,{"$f":"IF(ISBLANK(V10),1,0)","v":1},"代表者職・氏名"]
[]
[]
[null,"大阪市期間限定保育実施計画書"]
[]
[null,"　次の施設について、期間限定保育を実施したいので届出します。\n　また、期間限定保育の開始にあたっては、大阪市期間限定保育実施届（様式第２号）により届出し、認可定員及び利用定員の変更等の必要な手続きを行います。"]
[]
[null,null,null,null,"実施施設名",null,null,null,null,null,null,null,null,null,null,null,null,null,null,null,null,null,null,null,null,null,null,null,null,null,null,null,null,null,null,null,null,null,null,null,null,null,null,null,null,null,null,null,null,{"$f":"IF(ISBLANK(K17),1,0)","v":1},"実施施設名"]
[]
[null,null,null,null,"実施期間",null,null,null,null,null,null,null,"年間",null,null,null,null,null,null,null,null,null,null,null,null,null,null,null,null,null,null,null,null,null,null,null,null,null,null,null,null,null,null,null,null,null,null,null,null,{"$f":"IF(ISBLANK(K19),1,0)","v":1},"実施期間の年数"]
[null,null,null,null,null,null,null,null,null,null,null,null,null,null,null,"年",null,null,"月",null,null,"日","～",null,{"$f":"IF(ISBLANK(K20),\"\",K20)","v":""},null,{"$f":"IF(Q20>3,M20+K19,M20+K19-1)","v":-1},null,null,"年",3,null,"月",31,null,"日",null,null,null,null,null,null,null,null,null,null,null,null,null,{"$f":"IF(ISBLANK(K20),1,0)","v":1},"実施期間（開始）年号"]
[null,null,null,null,null,null,null,null,null,null,null,null,null,null,null,null,null,null,null,null,null,null,null,null,null,null,null,null,null,null,null,null,null,null,null,null,null,null,null,null,null,null,null,null,null,null,null,null,null,{"$f":"IF(ISBLANK(M20),1,0)","v":1},"実施期間（開始）年"]
[null,null,null,null,null,null,null,null,null,null,"２年間の実施が困難である理由（実施期間が１年間の場合のみ記入）",null,null,null,null,null,null,null,null,null,null,null,null,null,null,null,null,null,null,null,null,null,null,null,null,null,null,null,null,null,null,null,null,null,null,null,null,null,null,{"$f":"IF(ISBLANK(Q20),1,0)","v":1},"実施期間（開始）月"]
[null,null,null,null,null,null,null,null,null,null,null,null,null,null,null,null,null,null,null,null,null,null,null,null,null,null,null,null,null,null,null,null,null,null,null,null,null,null,null,null,null,null,null,null,null,null,null,null,null,{"$f":"IF(ISBLANK(T20),1,0)","v":1},"実施期間（開始）日"]
[null,null,null,null,null,null,null,null,null,null,null,null,null,null,null,null,null,null,null,null,null,null,null,null,null,null,null,null,null,null,null,null,null,null,null,null,null,null,null,null,null,null,null,null,null,null,null,null,null,{"$f":"IF(AND(K19=1,ISBLANK(K23)),1,0)","v":0},"２年間の実施が困難である理由"]
[]
[]
[null,null,null,null,"受入児童数",null,null,null,null,null,null,null,null,null,null,null,null,null,null,null,null,null,null,null,"１歳",null,null,null,"２歳"]
[null,null,null,null,null,null,null,null,null,null,"　実施１年目",null,null,null,null,"（",{"$f":"IF(ISBLANK($K$20),\"\",$K$20)","v":""},null,null,{"$f":"IF($K$19*$M$20=0,\"\",IF(Q20>3,M20,M20-1))","v":""},null,"年度",null,"）",null,null,null,"人",null,null,null,null,null,null,null,null,null,null,null,null,null,null,null,null,null,null,null,null,null,{"$f":"IF(ISBLANK(Y28),1,0)","v":1},"受入児童数"]
[null,null,null,null,null,null,null,null,null,null,"　実施２年目",null,null,null,null,"（",{"$f":"IF($K$19=2,Q28,\"\")","v":""},null,null,{"$f":"IF($K$19*$M$20=0,\"\",IF($K$19=2,T28+1,\"\"))","v":""},null,"年度",null,"）",null,null,null,null,{"$f":"IF(ISBLANK(Y28),\"\",IF($K$19=2,Y28,\"\"))","v":""},null,null,"人"]
[null,null,null,null,null,null,null,null,null,null,"※ 実施期間が２年間の場合は、実施１年目の１歳と実施２年目の２歳の受入児童数は\n　 同数になります。\n   なお、実施期間が１年間の場合は、実施２年目の受入児童数の記入は不要です。"]
[]
[]
[]
[null,null,null,null,"実施手法",null,null,null,null,null,"別紙のとおり"]
[]
[null,null,null,null,"保育士等配置",null,null,null,null,null,"別紙のとおり"]
[]
[null,"　期間限定保育の実施にあたっては、大阪市幼保連携型認定こども園の学級の編制、職員、設備及び運営に関する基準を定める条例（平成26年大阪市条例第100号）、大阪市幼保連携型認定こども園以外の認定こども園の認定の要件を定める条例（平成28年大阪市条例86号）、大阪市児童福祉施設の設備及び運営に関する基準を定める条例（平成24年条例第49号）、大阪市特定教育・保育施設及び特定地域型保育事業の運営に関する基準を定める条例（平成26年条例第99号）、及びその他関係法令に定める基準を満たし、児童の安全な受入に必要な環境及び体制を確保します。"]
[null,"  その他、児童の安全な受入にあたって、施設独自に工夫する点"]

{"sheet":" 別紙 ","index":1,"n_rows":27,"n_cols":51,"rows_kept":27,"cut":false,"hidden":false,"merged":[[27,1,27,40],[18,6,18,36],[15,0,15,37],[17,3,17,15],[17,17,17,34],[18,3,18,5],[20,2,20,4],[20,5,20,7],[20,8,20,37],[14,0,14,5],[9,19,9,21],[9,23,9,25],[9,27,9,29],[9,31,9,33],[11,19,11,21],[11,23,11,25],[11,27,11,29],[11,31,11,33],[9,35,9,37],[10,1,11,10],[10,11,10,34],[10,35,10,38],[11,11,11,13],[11,15,11,17],[11,35,11,37],[6,31,6,33],[6,35,6,37],[8,0,11,0],[8,1,9,10],[8,11,8,14],[8,15,8,18],[8,19,8,34],[8,35,8,38],[9,11,9,13],[9,15,9,17],[6,1,6,10],[6,11,6,13],[6,15,6,17],[6,19,6,21],[6,23,6,25],[6,27,6,29],[4,31,4,33],[4,35,4,37],[5,1,5,10],[5,11,5,13],[5,15,5,17],[5,19,5,21],[5,23,5,25],[5,27,5,29],[5,31,5,33],[5,35,5,38],[4,1,4,10],[4,11,4,13],[4,15,4,17],[4,19,4,21],[4,23,4,25],[4,27,4,29],[0,36,0,38],[2,1,2,38],[3,0,3,10],[3,11,3,14],[3,15,3,18],[3,19,3,22],[3,23,3,26],[3,27,3,30],[3,31,3,34],[3,35,3,38]]}
[null,null,null,null,null,null,null,null,null,null,null,null,null,null,null,null,null,null,null,null,null,null,null,null,null,null,null,null,null,null,null,null,null,null,null,null,"別紙",null,null,null,null,null,null,null,null,null,null,null,null,{"$f":"SUM(AX2:AX70)","v":19}]
["■施設の現況（期間限定保育実施前の状況）",null,null,null,null,null,null,null,null,null,null,null,null,null,null,null,null,null,null,null,null,null,null,null,null,null,null,null,null,null,null,null,null,null,null,null,null,null,null,null,null,null,null,null,null,null,null,null,null,{"$f":"IF(ISBLANK(L5),1,0)","v":1},"0歳児の面積"]
[null,"※ 開設前の施設については、期間限定保育の実施期間満了後の状況を記入してください。",null,null,null,null,null,null,null,null,null,null,null,null,null,null,null,null,null,null,null,null,null,null,null,null,null,null,null,null,null,null,null,null,null,null,null,null,null,null,null,null,null,null,null,null,null,null,null,{"$f":"IF(ISBLANK(P5),1,0)","v":1},"1歳児の面積"]
[null,null,null,null,null,null,null,null,null,null,null,"０歳",null,null,null,"１歳",null,null,null,"２歳",null,null,null,"３歳",null,null,null,"４歳",null,null,null,"５歳",null,null,null,"計",null,null,null,null,null,null,null,null,null,null,null,null,null,{"$f":"IF(ISBLANK(T5),1,0)","v":1},"2歳児の面積"]
["①","保育室面積",null,null,null,null,null,null,null,null,null,null,null,null,"㎡",null,null,null,"㎡",null,null,null,"㎡",null,null,null,"㎡",null,null,null,"㎡",null,null,null,"㎡",{"$f":"L5+P5+T5+X5+AB5+AF5","v":0},null,null,"㎡",null,null,null,null,null,null,null,null,null,null,{"$f":"IF(ISBLANK(X5),1,0)","v":1},"3歳児の面積"]
["②","保育室の設置階",null,null,null,null,null,null,null,null,null,null,null,null,"階",null,null,null,"階",null,null,null,"階",null,null,null,"階",null,null,null,"階",null,null,null,"階",null,null,null,null,null,null,null,null,null,null,null,null,null,null,{"$f":"IF(ISBLANK(AB5),1,0)","v":1},"4歳児の面積"]
["③","認可定員",null,null,null,null,null,null,null,null,null,null,null,null,"人",null,null,null,"人",null,null,null,"人",null,null,null,"人",null,null,null,"人",null,null,null,"人",{"$f":"L7+P7+T7+X7+AB7+AF7","v":0},null,null,"人",null,null,null,null,null,null,null,null,null,null,{"$f":"IF(ISBLANK(AF5),1,0)","v":1},"5歳児の面積"]
[null,null,null,null,null,null,null,null,null,null,null,null,null,null,null,null,null,null,null,null,null,null,null,null,null,null,null,null,null,null,null,null,null,null,null,null,null,null,null,null,null,null,null,null,null,null,null,null,null,{"$f":"IF(ISBLANK(L6),1,0)","v":1},"0歳児の階数"]
["参考","定員上限（最大）\n①÷上段の児童１人あたりの面積",null,null,null,null,null,null,null,null,null,"5.0㎡／人",null,null,null,"3.3㎡／人",null,null,null,"1.98㎡／人",null,null,null,null,null,null,null,null,null,null,null,null,null,null,null,null,null,null,null,null,null,null,null,null,null,null,null,null,null,{"$f":"IF(ISBLANK(P6),1,0)","v":1},"1歳児の階数"]
[null,null,null,null,null,null,null,null,null,null,null,{"$f":"ROUNDDOWN(L5/5,0)","v":0},null,null,"人",{"$f":"ROUNDDOWN(P5/3.3,0)","v":0},null,null,"人",{"$f":"ROUNDDOWN(T5/1.98,0)","v":0},null,null,"人",{"$f":"ROUNDDOWN(X5/1.98,0)","v":0},null,null,"人",{"$f":"ROUNDDOWN(AB5/1.98,0)","v":0},null,null,"人",{"$f":"ROUNDDOWN(AF5/1.98,0)","v":0},null,null,"人",{"$f":"SUM(L10:AH10)","v":0},null,null,"人","←自動計算",null,null,null,null,null,null,null,null,null,{"$f":"IF(ISBLANK(T6),1,0)","v":1},"2歳児の階数"]
[null,"面積基準緩和を適用した\n場合の定員上限（最大）\n①÷上段の児童１人あたりの面積",null,null,null,null,null,null,null,null,null,"1.65㎡／人",null,null,null,null,null,null,null,null,null,null,null,null,null,null,null,null,null,null,null,null,null,null,null,null,null,null,null,null,null,null,null,null,null,null,null,null,null,{"$f":"IF(ISBLANK(X6),1,0)","v":1},"3歳児の階数"]
[null,null,null,null,null,null,null,null,null,null,null,{"$f":"ROUNDDOWN(L5/1.65,0)","v":0},null,null,"人",{"$f":"ROUNDDOWN(P5/1.65,0)","v":0},null,null,"人",{"$f":"ROUNDDOWN(T5/1.65,0)","v":0},null,null,"人",{"$f":"ROUNDDOWN(X5/1.65,0)","v":0},null,null,"人",{"$f":"ROUNDDOWN(AB5/1.65,0)","v":0},null,null,"人",{"$f":"ROUNDDOWN(AF5/1.65,0)","v":0},null,null,"人",{"$f":"SUM(L12:AH12)","v":0},null,null,"人","←自動計算",null,null,null,null,null,null,null,null,null,{"$f":"IF(ISBLANK(AB6),1,0)","v":1},"4歳児の階数"]
[null,null,null,null,null,null,null,null,null,null,null,null,null,null,null,null,null,null,null,null,null,null,null,null,null,null,null,null,null,null,null,null,null,null,null,null,null,null,null,null,null,null,null,null,null,null,null,null,null,{"$f":"IF(ISBLANK(AF6),1,0)","v":1},"5歳児の階数"]
["■期間限定保育の実施手法等",null,null,null,null,null,null,null,null,null,null,null,null,null,null,null,null,null,null,null,null,null,null,null,null,null,null,null,null,null,null,null,null,null,null,null,null,null,null,null,null,null,null,null,null,null,null,null,null,{"$f":"IF(ISBLANK(L7),1,0)","v":1},"0歳児の認可定員"]
["〇実施手法",null,null,null,null,null,null,null,null,null,null,null,null,null,null,null,null,null,null,null,null,null,null,null,null,null,null,null,null,null,null,null,null,null,null,null,null,null,null,null,null,null,null,null,null,null,null,null,null,{"$f":"IF(ISBLANK(P7),1,0)","v":1},"1歳児の認可定員"]
["  該当する○にレ印をつけてください。その他にレ印をつけた場合は、内容を記入してください。",null,null,null,null,null,null,null,null,null,null,null,null,null,null,null,null,null,null,null,null,null,null,null,null,null,null,null,null,null,null,null,null,null,null,null,null,null,null,null,null,null,null,null,null,null,null,null,null,{"$f":"IF(ISBLANK(T7),1,0)","v":1},"2歳児の認可定員"]
[null,"４・５歳児の合同保育を実施し、保育室の空きを活用して実施する",null,null,null,null,null,null,null,null,null,null,null,null,null,null,null,null,null,null,null,null,null,null,null,null,null,null,null,null,null,null,null,null,null,null,null,null,null,null,null,null,null,null,null,null,null,null,null,{"$f":"IF(ISBLANK(X7),1,0)","v":1},"3歳児の認可定員"]
[null,null,null," ４歳児室又は５歳児室を利用する",null,null,null,null,null,null,null,null,null,null,null,null,null,"年齢をスライドして保育室を利用する",null,null,null,null,null,null,null,null,null,null,null,null,null,null,null,null,null,null,null,null,null,null,null,null,null,null,null,null,null,null,null,{"$f":"IF(ISBLANK(AB7),1,0)","v":1},"4歳児の認可定員"]
[null,null,null,"その他（",null,null,null,null,null,null,null,null,null,null,null,null,null,null,null,null,null,null,null,null,null,null,null,null,null,null,null,null,null,null,null,null,null,"）",null,null,null,null,null,null,null,null,null,null,null,{"$f":"IF(ISBLANK(AF7),1,0)","v":1},"5歳児の認可定員"]
[null,null,"面積基準緩和を適用して実施する",null,null,null,null,null,null,null,null,null,null,null,null,null,null,null,null,null,null,null,null,null,null,null,null,null,null,null,null,null,null,null,null,null,null,null,null,null,null,null,null,null,null,null,null,null,null,1,"期間限定の実施手法"]
[null,null,"その他",null,null,"（内容",null,null,null,null,null,null,null,null,null,null,null,null,null,null,null,null,null,null,null,null,null,null,null,null,null,null,null,null,null,null,null,null,"）",null,null,null,null,null,null,null,null,null,{"$f":"IF(ISBLANK(G19),1,0)","v":1},0,"合同保育のその他理由"]
[null,null,null,null,null,null,null,null,null,null,null,null,null,null,null,null,null,null,null,null,null,null,null,null,null,null,null,null,null,null,null,null,null,null,null,null,null,null,null,null,null,null,null,null,null,null,null,null,{"$f":"IF(ISBLANK(I21),1,0)","v":1},0,"その他の理由"]
["〇保育室等の活用計画"]
[null,"別紙①のとおり"]
[]
["〇保育士等配置計画"]
[null,"別紙①のとおり"]

{"sheet":"　別紙①（合同保育を実施）","index":2,"n_rows":96,"n_cols":51,"rows_kept":96,"cut":false,"hidden":false,"merged":[[47,31,47,33],[47,35,47,37],[47,39,47,41],[48,1,48,10],[48,11,48,13],[48,27,48,29],[48,31,48,33],[48,35,48,37],[48,39,48,41],[47,1,47,10],[47,11,47,13],[47,27,47,29],[47,21,47,23],[47,15,47,17],[48,15,48,17],[48,21,48,23],[53,1,53,38],[57,0,57,28],[58,1,60,42],[50,1,50,9],[50,10,50,17],[50,18,50,25],[50,26,50,33],[51,3,51,6],[51,12,51,14],[51,20,51,22],[51,28,51,30],[51,36,51,38],[50,34,50,41],[46,11,46,14],[46,27,46,30],[32,8,32,10],[43,39,43,41],[41,11,41,13],[46,31,46,34],[46,35,46,38],[46,39,46,42],[46,19,46,26],[46,15,46,18],[45,0,45,42],[46,0,46,10],[42,1,43,10],[42,11,42,38],[43,11,43,13],[43,15,43,17],[43,19,43,21],[43,23,43,25],[43,27,43,29],[43,33,43,35],[37,1,37,10],[37,11,37,13],[37,15,37,17],[38,27,38,29],[38,31,38,33],[38,35,38,37],[38,39,38,41],[40,0,43,0],[40,1,41,10],[40,11,40,14],[40,39,40,42],[41,15,41,17],[41,19,41,21],[41,23,41,25],[41,27,41,29],[41,33,41,35],[41,39,41,41],[38,1,38,10],[38,11,38,13],[38,15,38,17],[38,19,38,21],[38,23,38,25],[40,15,40,18],[40,19,40,38],[37,19,37,21],[37,23,37,25],[37,27,37,29],[34,19,34,26],[35,23,35,26],[34,15,35,18],[36,27,36,29],[37,33,37,35],[37,39,37,42],[36,15,36,17],[36,19,36,21],[36,23,36,25],[36,33,36,35],[36,39,36,41],[16,23,16,26],[36,1,36,10],[36,11,36,13],[34,39,35,42],[35,19,35,22],[18,17,18,19],[21,36,21,38],[17,35,17,37],[20,10,20,17],[20,18,20,25],[20,26,20,33],[20,34,20,41],[17,11,17,13],[32,11,32,12],[17,23,17,25],[17,31,17,33],[8,31,8,33],[10,1,11,10],[17,1,17,10],[27,0,27,28],[28,1,30,42],[34,0,35,10],[34,11,35,14],[34,27,35,30],[34,31,35,34],[34,35,35,38],[33,0,33,12],[16,27,16,30],[16,31,16,34],[18,39,18,41],[18,35,18,37],[17,39,17,41],[18,1,18,10],[21,3,21,6],[21,12,21,14],[16,15,16,22],[20,1,20,9],[16,35,16,38],[18,27,18,29],[17,17,17,19],[4,35,5,38],[16,0,16,10],[6,33,6,35],[6,23,6,25],[7,39,7,42],[11,33,11,35],[8,23,8,25],[7,33,7,35],[12,11,12,38],[12,1,13,10],[7,27,7,29],[10,15,10,22],[10,39,10,42],[7,11,7,13],[7,19,7,21],[7,23,7,25],[13,27,13,29],[13,23,13,25],[13,15,13,17],[11,23,11,25],[13,11,13,13],[11,11,11,13],[11,15,11,17],[8,11,8,13],[11,19,11,21],[11,27,11,29],[0,40,0,42],[4,0,5,10],[4,11,5,14],[4,23,5,26],[4,27,5,30],[7,15,7,17],[6,19,6,21],[3,0,3,12],[2,11,2,12],[6,27,6,29],[0,0,0,26],[2,0,2,6],[2,8,2,10],[6,1,6,10],[6,11,6,13],[7,1,7,10],[4,15,4,22],[5,19,5,22],[6,15,6,17],[6,39,6,41],[4,31,5,34],[5,15,5,18],[10,0,13,0],[4,39,5,42],[28,43,30,43],[8,35,8,37],[18,31,18,33],[16,11,16,14],[13,33,13,35],[21,20,21,22],[21,28,21,30],[10,11,10,14],[8,27,8,29],[13,39,13,41],[10,23,10,38],[18,23,18,25],[8,39,8,41],[8,19,8,21],[11,39,11,41],[17,27,17,29],[15,0,15,42],[8,1,8,10],[18,11,18,13],[16,39,16,42],[13,19,13,21],[8,15,8,17]]}
["【４・５歳児の合同保育を実施し、保育室の空きを活用して実施する場合】",null,null,null,null,null,null,null,null,null,null,null,null,null,null,null,null,null,null,null,null,null,null,null,null,null,null,null,null,null,null,null,null,null,null,null,null,null,null,null,"別紙①",null,null,null,null,null,null,null,null,{"$f":"SUM(AX2:AX71)","v":56}]
[]
["●実施１年目",null,null,null,null,null,null,"（",{"$f":"'様式第1号 実施計画書'!K20","v":"00:00:00"},null,null,{"$f":"'様式第1号 実施計画書'!M20","v":0},null,"年度　）",null,null,null,null,null,null,null,null,null,null,null,null,null,null,null,null,null,null,null,null,null,null,null,null,null,null,null,null,null,null,null,null,null,null,null,{"$f":"IF(ISBLANK(L7),1,0)","v":1},"実施1年目0歳児面積"]
[" 〇保育室等の活用計画",null,null,null,null,null,null,null,null,null,null,null,null,null,null,null,null,null,null,null,null,null,null,null,null,null,null,null,null,null,null,null,null,null,null,null,null,null,null,null,null,null,null,null,null,null,null,null,null,{"$f":"IF(ISBLANK(P7),1,0)","v":1},"実施1年目1歳児面積"]
[null,null,null,null,null,null,null,null,null,null,null,"０歳",null,null,null,"１歳",null,null,null,null,null,null,null,"２歳",null,null,null,"３歳",null,null,null,"４歳",null,null,null,"５歳",null,null,null,"計",null,null,null,null,null,null,null,null,null,{"$f":"IF(ISBLANK(T7),1,0)","v":1},"実施1年目1歳児(期間限定)面積"]
[null,null,null,null,null,null,null,null,null,null,null,null,null,null,null,"右記以外",null,null,null,"期間限定",null,null,null,null,null,null,null,null,null,null,null,null,null,null,null,null,null,null,null,null,null,null,null,null,null,null,null,null,null,{"$f":"IF(ISBLANK(X7),1,0)","v":1},"実施1年目2歳児面積"]
["①","保育室面積",null,null,null,null,null,null,null,null,null,null,null,null,"㎡",null,null,null,"㎡",null,null,null,"㎡",null,null,null,"㎡",null,null,null,"㎡",null,null,null,null,null,"㎡",null,null,{"$f":"L7+P7+T7+X7+AB7+AH7","v":0},null,null,"㎡","面積計は別紙の現況と同じとなる",null,null,null,null,null,{"$f":"IF(ISBLANK(AB7),1,0)","v":1},"実施1年目3歳児面積"]
["②","保育室の設置階",null,null,null,null,null,null,null,null,null,null,null,null,"階",null,null,null,"階",null,null,null,"階",null,null,null,"階",null,null,null,"階",null,null,null,null,null,"階",null,null,null,null,null,null,null,null,null,null,null,null,{"$f":"IF(ISBLANK(AH7),1,0)","v":1},"実施1年目4・5歳児面積"]
["③","期間限定保育実施に\nよる変更後の認可定員",null,null,null,null,null,null,null,null,null,null,null,null,"人",null,null,null,"人",{"$f":"'様式第1号 実施計画書'!Y28","v":0},null,null,"人",null,null,null,"人",null,null,null,"人",null,null,null,"人",null,null,null,"人",{"$f":"SUM(L9:AM9)","v":0},null,null,"人","原則として0歳・1歳(期間限定以外)・2歳・3歳の定員は変わらない",null,null,null,null,null,{"$f":"IF(ISBLANK(L8),1,0)","v":1},"実施1年目保育室の設置階0歳児"]
[null,null,null,null,null,null,null,null,null,null,null,null,null,null,null,null,null,null,null,null,null,null,null,null,null,null,null,null,null,null,null,null,null,null,null,null,null,null,null,null,null,null,null,null,null,null,null,null,null,{"$f":"IF(ISBLANK(P8),1,0)","v":1},"実施1年目保育室の設置階1歳児"]
["参考","定員上限（最大）\n①÷上段の児童１人あたりの面積",null,null,null,null,null,null,null,null,null,"5.0㎡／人",null,null,null,"3.3㎡／人",null,null,null,null,null,null,null,"1.98㎡／人",null,null,null,null,null,null,null,null,null,null,null,null,null,null,null,null,null,null,null,null,null,null,null,null,null,{"$f":"IF(ISBLANK(T8),1,0)","v":1},"実施1年目保育室の設置階1歳児(期間限定)"]
[null,null,null,null,null,null,null,null,null,null,null,{"$f":"ROUNDDOWN(L7/5,0)","v":0},null,null,"人",{"$f":"ROUNDDOWN(P7/3.3,0)","v":0},null,null,"人",{"$f":"ROUNDDOWN(T7/3.3,0)","v":0},null,null,"人",{"$f":"ROUNDDOWN(X7/1.98,0)","v":0},null,null,"人",{"$f":"ROUNDDOWN(AB7/1.98,0)","v":0},null,null,"人",null,null,{"$f":"ROUNDDOWN(AH7/1.98,0)","v":0},null,null,"人",null,null,{"$f":"SUM(L12:AM12)","v":0},null,null,"人",null,null,null,null,null,null,{"$f":"IF(ISBLANK(X8),1,0)","v":1},"実施1年目保育室の設置階2歳児"]
[null,"面積基準緩和を適用した\n場合の定員上限（最大）\n①÷上段の児童１人あたりの面積",null,null,null,null,null,null,null,null,null,"1.65㎡／人",null,null,null,null,null,null,null,null,null,null,null,null,null,null,null,null,null,null,null,null,null,null,null,null,null,null,null,null,null,null,null,null,null,null,null,null,null,{"$f":"IF(ISBLANK(AB8),1,0)","v":1},"実施1年目保育室の設置階3歳児"]
[null,null,null,null,null,null,null,null,null,null,null,{"$f":"ROUNDDOWN(L7/1.65,0)","v":0},null,null,"人",{"$f":"ROUNDDOWN(P7/1.65,0)","v":0},null,null,"人",{"$f":"ROUNDDOWN(T7/1.65,0)","v":0},null,null,"人",{"$f":"ROUNDDOWN(X7/1.65,0)","v":0},null,null,"人",{"$f":"ROUNDDOWN(AB7/1.65,0)","v":0},null,null,"人",null,null,{"$f":"ROUNDDOWN(AH7/1.65,0)","v":0},null,null,"人",null,null,{"$f":"SUM(L14:AL14)","v":0},null,null,"人",null,null,null,null,null,null,{"$f":"IF(ISBLANK(AH8),1,0)","v":1},"実施1年目保育室の設置階4・5歳児"]
[null,null,null,null,null,null,null,null,null,null,null,null,null,null,null,null,null,null,null,null,null,null,null,null,null,null,null,null,null,null,null,null,null,null,null,null,null,null,null,null,null,null,null,null,null,null,null,null,null,{"$f":"IF(ISBLANK(L9),1,0)","v":1},"実施1年目認可定員0歳"]
[" 〇保育士等配置基準        ※　入所予定児童数は、進級やこれまでの新規入所や申込みの状況等を勘案して計画を立ててください。",null,null,null,null,null,null,null,null,null,null,null,null,null,null,null,null,null,null,null,null,null,null,null,null,null,null,null,null,null,null,null,null,null,null,null,null,null,null,null,null,null,null,null,null,null,null,null,null,{"$f":"IF(ISBLANK(P9),1,0)","v":1},"実施1年目認可定員1歳"]
[null,null,null,null,null,null,null,null,null,null,null,"０歳",null,null,null,"１歳(期間限定含む)",null,null,null,null,null,null,null,"２歳",null,null,null,"３歳",null,null,null,"４歳",null,null,null,"５歳",null,null,null,"計",null,null,null,null,null,null,null,null,null,{"$f":"IF(ISBLANK(X9),1,0)","v":1},"実施1年目認可定員2歳"]
["④","入所予定児童数※",null,null,null,null,null,null,null,null,null,null,null,null,"人",null,null,null,null,null,"人",null,null,null,null,null,"人",null,null,null,"人",null,null,null,"人",null,null,null,"人",{"$f":"L18+R18+X18+AB18+AF18+AJ18","v":0},null,null,"人",null,null,null,null,null,null,{"$f":"IF(ISBLANK(AB9),1,0)","v":1},"実施1年目認可定員3歳"]
["⑤","保育士等配置基準数\n(歳児毎)",null,null,null,null,null,null,null,null,null,{"$f":"ROUNDDOWN(L18/3,1)","v":0},null,null,"人",null,null,{"$f":"ROUNDDOWN(R18/6,1)","v":0},null,null,"人",null,null,{"$f":"ROUNDDOWN(X18/6,1)","v":0},null,null,"人",{"$f":"ROUNDDOWN(AB18/20,1)","v":0},null,null,"人",{"$f":"ROUNDDOWN(AF18/30,1)","v":0},null,null,"人",{"$f":"ROUNDDOWN(AJ18/30,1)","v":0},null,null,"人",{"$f":"ROUND(SUM(L19:AL19),0)","v":0},null,null,"人",null,null,null,null,null,null,{"$f":"IF(ISBLANK(AF9),1,0)","v":1},"実施1年目認可定員4歳"]
[null,null,null,null,null,null,null,null,null,null,null,null,null,null,null,null,null,null,null,null,null,null,null,null,null,null,null,null,null,null,null,null,null,null,null,null,null,null,null,null,null,null,null,null,null,null,null,null,null,{"$f":"IF(ISBLANK(AJ9),1,0)","v":1},"実施1年目認可定員5歳"]
[null,"保育士等配置基準数\n(歳児毎)",null,null,null,null,null,null,null,null,"休けい保育士等\n(定員90人以下の場合)",null,null,null,null,null,null,null,"標準時間認定の児童\nを受け入れる場合",null,null,null,null,null,null,null,null,null,null,null,null,null,null,null,"合  計",null,null,null,null,null,null,null,null,"認定こども園については、主幹教諭専任加算はない。義務であるため",null,null,null,null,null,{"$f":"IF(ISBLANK(L18),1,0)","v":1},"実施1年目入所予定児童0歳児"]
[null,null,null,{"$f":"AN19","v":0},null,null,null,"人",null,null,null,null,null,null,null,"人",null,null,null,null,null,null,null,"人",null,null,null,null,null,null,null,"人",null,null,null,null,{"$f":"D22+M22+U22+AC22","v":0},null,null,"人",null,null,null,null,null,null,null,null,null,{"$f":"IF(ISBLANK(R18),1,0)","v":1},"実施1年目入所予定児童1歳児"]
[null,null,null,null,null,null,null,null,null,null,null,null,null,null,null,null,null,null,null,null,null,null,null,null,null,null,null,null,null,null,null,null,null,null,null,null,null,null,null,null,null,null,null,null,null,null,null,null,null,{"$f":"IF(ISBLANK(X18),1,0)","v":1},"実施1年目入所予定児童2歳児"]
[null,"次の□にレ印をつけてください。",null,null,null,null,null,null,null,null,null,null,null,null,null,null,null,null,null,null,null,null,null,null,null,null,null,null,null,null,null,null,null,null,null,null,null,null,null,null,null,null,null,null,null,null,null,null,null,{"$f":"IF(ISBLANK(AB18),1,0)","v":1},"実施1年目入所予定児童3歳児"]
[null,null,null,"上記の保育士等配置基準のほか、補助事業にあたっては補助要綱等に定める保育士等配置基準、また",null,null,null,null,null,null,null,null,null,null,null,null,null,null,null,null,null,null,null,null,null,null,null,null,null,null,null,null,null,null,null,null,null,null,null,null,null,null,null,null,null,null,null,null,null,{"$f":"IF(ISBLANK(AF18),1,0)","v":1},"実施1年目入所予定児童4歳児"]
[null,null,null,"保育士等以外の看護師、調理員等、保育にかかる全ての職員配置基準を遵守します。",null,null,null,null,null,null,null,null,null,null,null,null,null,null,null,null,null,null,null,null,null,null,null,null,null,null,null,null,null,null,null,null,null,null,null,null,null,null,null,null,null,null,null,null,null,{"$f":"IF(ISBLANK(AJ18),1,0)","v":1},"実施1年目入所予定児童5歳児"]
[]
[" 〇保育士等配置に係る法人の考え方（保育士等の雇用確保の方法を含む）",null,null,null,null,null,null,null,null,null,null,null,null,null,null,null,null,null,null,null,null,null,null,null,null,null,null,null,null,null,null,null,null,null,null,null,null,null,null,null,null,null,null,null,null,null,null,null,null,{"$f":"IF(ISBLANK(M22),1,0)","v":1},"実施1年目休けい保育士"]
[null,null,null,null,null,null,null,null,null,null,null,null,null,null,null,null,null,null,null,null,null,null,null,null,null,null,null,null,null,null,null,null,null,null,null,null,null,null,null,null,null,null,null,"配置基準を上回る配置を、現員数・退職予定者数・新規採用予定者数（確保の方法も）を勘案すると実現できることなど、を記載。",null,null,null,null,null,{"$f":"IF(ISBLANK(U22),1,0)","v":1},"実施1年目標準間認定保育士"]
[null,null,null,null,null,null,null,null,null,null,null,null,null,null,null,null,null,null,null,null,null,null,null,null,null,null,null,null,null,null,null,null,null,null,null,null,null,null,null,null,null,null,null,null,null,null,null,null,null,{"$f":"IF(ISBLANK(AC22),1,0)","v":1},"実施1年目主任保育士専任加算"]
[null,null,null,null,null,null,null,null,null,null,null,null,null,null,null,null,null,null,null,null,null,null,null,null,null,null,null,null,null,null,null,null,null,null,null,null,null,null,null,null,null,null,null,null,null,null,null,null,null,null,"□にレがついているか"]
[null,null,null,null,null,null,null,null,null,null,null,null,null,null,null,null,null,null,null,null,null,null,null,null,null,null,null,null,null,null,null,null,null,null,null,null,null,null,null,null,null,null,null,null,null,null,null,null,null,{"$f":"IF(ISBLANK(B29),1,0)","v":1},"実施1年目保育士配置の考え方"]
["●実施２年目",null,null,null,null,null,null,"（",{"$f":"'様式第1号 実施計画書'!Q29","v":""},null,null,{"$f":"'様式第1号 実施計画書'!T29","v":""},null,"年度　）",null,null,null,null,null,null,null,"実施期間が１年間の場合は、記入は不要です。",null,null,null,null,null,null,null,null,null,null,null,null,null,null,null,null,null,null,null,null,null,null,null,null,null,null,null,{"$f":"IF(ISBLANK(L37),1,0)","v":1},"実施2年目0歳児面積"]
[" 〇保育室等の活用計画",null,null,null,null,null,null,null,null,null,null,null,null,null,null,null,null,null,null,null,null,null,null,null,null,null,null,null,null,null,null,null,null,null,null,null,null,null,null,null,null,null,null,null,null,null,null,null,null,{"$f":"IF(ISBLANK(P37),1,0)","v":1},"実施2年目1歳児面積"]
[null,null,null,null,null,null,null,null,null,null,null,"０歳",null,null,null,"１歳",null,null,null,"２歳",null,null,null,null,null,null,null,"３歳",null,null,null,"４歳",null,null,null,"５歳",null,null,null,"計",null,null,null,null,null,null,null,null,null,{"$f":"IF(ISBLANK(T37),1,0)","v":1},"実施2年目2歳児面積"]
[null,null,null,null,null,null,null,null,null,null,null,null,null,null,null,null,null,null,null,"右記以外",null,null,null,"期間限定",null,null,null,null,null,null,null,null,null,null,null,null,null,null,null,null,null,null,null,null,null,null,null,null,null,{"$f":"IF(ISBLANK(X37),1,0)","v":1},"実施2年目2歳児面積"]
["①","保育室面積",null,null,null,null,null,null,null,null,null,null,null,null,"㎡",null,null,null,"㎡",null,null,null,"㎡",null,null,null,"㎡",null,null,null,"㎡",null,null,null,null,null,"㎡",null,null,{"$f":"L37+P37+T37+X37+AB37+AH37","v":0},null,null,"㎡","面積計は別紙の現況と同じとなる",null,null,null,null,null,{"$f":"IF(ISBLANK(AB37),1,0)","v":1},"実施2年目3歳児面積"]
["②","保育室の設置階",null,null,null,null,null,null,null,null,null,null,null,null,"階",null,null,null,"階",null,null,null,"階",null,null,null,"階",null,null,null,"階",null,null,null,null,null,"階",null,null,null,null,null,null,null,null,null,null,null,null,{"$f":"IF(ISBLANK(AH37),1,0)","v":1},"実施2年目4・5歳児面積"]
["③","期間限定保育実施に\nよる変更後の認可定員",null,null,null,null,null,null,null,null,null,null,null,null,"人",null,null,null,"人",null,null,null,"人",{"$f":"'様式第1号 実施計画書'!AC29","v":""},null,null,"人",null,null,null,"人",null,null,null,"人",null,null,null,"人",{"$f":"SUM(L39:AL39)","v":0},null,null,"人","原則として0歳・1歳・2歳（期間限定以外）・3歳の定員は変わらない",null,null,null,null,null,{"$f":"IF(ISBLANK(L38),1,0)","v":1},"実施2年目保育室の設置階0歳児"]
[null,null,null,null,null,null,null,null,null,null,null,null,null,null,null,null,null,null,null,null,null,null,null,null,null,null,null,null,null,null,null,null,null,null,null,null,null,null,null,null,null,null,null,null,null,null,null,null,null,{"$f":"IF(ISBLANK(P38),1,0)","v":1},"実施2年目保育室の設置階1歳児"]
["参考","定員上限（最大）\n①÷上段の児童１人あたりの面積",null,null,null,null,null,null,null,null,null,"5.0㎡／人",null,null,null,"3.3㎡／人",null,null,null,"1.98㎡／人",null,null,null,null,null,null,null,null,null,null,null,null,null,null,null,null,null,null,null,null,null,null,null,null,null,null,null,null,null,{"$f":"IF(ISBLANK(T38),1,0)","v":1},"実施2年目保育室の設置階2歳児"]
[null,null,null,null,null,null,null,null,null,null,null,{"$f":"ROUNDDOWN(L37/5,0)","v":0},null,null,"人",{"$f":"ROUNDDOWN(P37/3.3,0)","v":0},null,null,"人",{"$f":"ROUNDDOWN(T37/1.98,0)","v":0},null,null,"人",{"$f":"ROUNDDOWN(X37/1.98,0)","v":0},null,null,"人",{"$f":"ROUNDDOWN(AB37/1.98,0)","v":0},null,null,"人",null,null,{"$f":"ROUNDDOWN(AH37/1.98,0)","v":0},null,null,"人",null,null,{"$f":"SUM(L42:AM42)","v":0},null,null,"人",null,null,null,null,null,null,{"$f":"IF(ISBLANK(X38),1,0)","v":1},"実施2年目保育室の設置階2歳児（期間限定）"]
[null,"面積基準緩和を適用した\n場合の定員上限（最大）\n①÷上段の児童１人あたりの面積",null,null,null,null,null,null,null,null,null,"1.65㎡／人",null,null,null,null,null,null,null,null,null,null,null,null,null,null,null,null,null,null,null,null,null,null,null,null,null,null,null,null,null,null,null,null,null,null,null,null,null,{"$f":"IF(ISBLANK(AB38),1,0)","v":1},"実施2年目保育室の設置階3歳児"]
[null,null,null,null,null,null,null,null,null,null,null,{"$f":"ROUNDDOWN(L37/1.65,0)","v":0},null,null,"人",{"$f":"ROUNDDOWN(P37/1.65,0)","v":0},null,null,"人",{"$f":"ROUNDDOWN(T37/1.65,0)","v":0},null,null,"人",{"$f":"ROUNDDOWN(X37/1.65,0)","v":0},null,null,"人",{"$f":"ROUNDDOWN(AB37/1.65,0)","v":0},null,null,"人",null,null,{"$f":"ROUNDDOWN(AH37/1.65,0)","v":0},null,null,"人",null,null,{"$f":"SUM(L44:AM44)","v":0},null,null,"人",null,null,null,null,null,null,{"$f":"IF(ISBLANK(AH38),1,0)","v":1},"実施2年目保育室の設置階4・5歳児"]
[null,null,null,null,null,null,null,null,null,null,null,null,null,null,null,null,null,null,null,null,null,null,null,null,null,null,null,null,null,null,null,null,null,null,null,null,null,null,null,null,null,null,null,null,null,null,null,null,null,{"$f":"IF(ISBLANK(L39),1,0)","v":1},"実施2年目認可定員0歳"]
[" 〇保育士等配置基準        ※　入所予定児童数は、進級やこれまでの新規入所や申込みの状況等を勘案して計画を立ててください。",null,null,null,null,null,null,null,null,null,null,null,null,null,null,null,null,null,null,null,null,null,null,null,null,null,null,null,null,null,null,null,null,null,null,null,null,null,null,null,null,null,null,null,null,null,null,null,null,{"$f":"IF(ISBLANK(P39),1,0)","v":1},"実施2年目認可定員1歳"]
[null,null,null,null,null,null,null,null,null,null,null,"０歳",null,null,null,"１歳",null,null,null,"２歳(期間限定含む)",null,null,null,null,null,null,null,"３歳",null,null,null,"４歳",null,null,null,"５歳",null,null,null,"計",null,null,null,null,null,null,null,null,null,{"$f":"IF(ISBLANK(T39),1,0)","v":1},"実施2年目認可定員2歳"]
["④","入所予定児童数※",null,null,null,null,null,null,null,null,null,null,null,null,"人",null,null,null,"人",null,null,null,null,null,"人",null,null,null,null,null,"人",null,null,null,"人",null,null,null,"人",{"$f":"L48+P48+V48+AB48+AF48+AJ48","v":0},null,null,"人",null,null,null,null,null,null,{"$f":"IF(ISBLANK(AB39),1,0)","v":1},"実施2年目認可定員3歳"]
["⑤","保育士等配置基準数\n(歳児毎)",null,null,null,null,null,null,null,null,null,{"$f":"ROUNDDOWN(L48/3,1)","v":0},null,null,"人",{"$f":"ROUNDDOWN(P48/6,1)","v":0},null,null,"人",null,null,{"$f":"ROUNDDOWN(V48/6,1)","v":0},null,null,"人",null,null,{"$f":"ROUNDDOWN(AB48/20,1)","v":0},null,null,"人",{"$f":"ROUNDDOWN(AF48/30,1)","v":0},null,null,"人",{"$f":"ROUNDDOWN(AJ48/30,1)","v":0},null,null,"人",{"$f":"ROUND(SUM(L49:AL49),0)","v":0},null,null,"人",null,null,null,null,null,null,{"$f":"IF(ISBLANK(AF39),1,0)","v":1},"実施2年目認可定員4歳"]
[null,null,null,null,null,null,null,null,null,null,null,null,null,null,null,null,null,null,null,null,null,null,null,null,null,null,null,null,null,null,null,null,null,null,null,null,null,null,null,null,null,null,null,null,null,null,null,null,null,{"$f":"IF(ISBLANK(AJ39),1,0)","v":1},"実施2年目認可定員5歳"]
[null,"保育士等配置基準数\n(歳児毎)",null,null,null,null,null,null,null,null,"休けい保育士等\n(定員90人以下の場合)",null,null,null,null,null,null,null,"標準時間認定の児童\nを受け入れる場合",null,null,null,null,null,null,null,null,null,null,null,null,null,null,null,"合  計"]
[null,null,null,{"$f":"AN49","v":0},null,null,null,"人",null,null,null,null,null,null,null,"人",null,null,null,null,null,null,null,"人",null,null,null,null,null,null,null,"人",null,null,null,null,{"$f":"D52+M52+U52+AC52","v":0},null,null,"人",null,null,null,null,null,null,null,null,null,{"$f":"IF(ISBLANK(L48),1,0)","v":1},"実施2年目入所予定児童0歳児"]
[null,null,null,null,null,null,null,null,null,null,null,null,null,null,null,null,null,null,null,null,null,null,null,null,null,null,null,null,null,null,null,null,null,null,null,null,null,null,null,null,null,null,null,null,null,null,null,null,null,{"$f":"IF(ISBLANK(P48),1,0)","v":1},"実施2年目入所予定児童1歳児"]
[null,"次の□にレ印をつけてください。",null,null,null,null,null,null,null,null,null,null,null,null,null,null,null,null,null,null,null,null,null,null,null,null,null,null,null,null,null,null,null,null,null,null,null,null,null,null,null,null,null,null,null,null,null,null,null,{"$f":"IF(ISBLANK(V48),1,0)","v":1},"実施2年目入所予定児童2歳児"]
[null,null,null,"上記の保育士等配置基準のほか、補助事業にあたっては補助要綱等に定める保育士等配置基準、また",null,null,null,null,null,null,null,null,null,null,null,null,null,null,null,null,null,null,null,null,null,null,null,null,null,null,null,null,null,null,null,null,null,null,null,null,null,null,null,null,null,null,null,null,null,{"$f":"IF(ISBLANK(AB48),1,0)","v":1},"実施2年目入所予定児童3歳児"]
[null,null,null,"保育士等以外の看護師、調理員等、保育の実施にあたり定められた全ての職員配置基準を遵守します。",null,null,null,null,null,null,null,null,null,null,null,null,null,null,null,null,null,null,null,null,null,null,null,null,null,null,null,null,null,null,null,null,null,null,null,null,null,null,null,null,null,null,null,null,null,{"$f":"IF(ISBLANK(AF48),1,0)","v":1},"実施2年目入所予定児童4歳児"]
[null,null,null,null,null,null,null,null,null,null,null,null,null,null,null,null,null,null,null,null,null,null,null,null,null,null,null,null,null,null,null,null,null,null,null,null,null,null,null,null,null,null,null,null,null,null,null,null,null,{"$f":"IF(ISBLANK(AJ48),1,0)","v":1},"実施2年目入所予定児童5歳児"]
[" 〇保育士等配置に係る法人の考え方（保育士等の雇用確保の方法を含む）"]
[null,null,null,null,null,null,null,null,null,null,null,null,null,null,null,null,null,null,null,null,null,null,null,null,null,null,null,null,null,null,null,null,null,null,null,null,null,null,null,null,null,null,null,null,null,null,null,null,null,{"$f":"IF(ISBLANK(M52),1,0)","v":1},"実施2年目休けい保育士"]
[null,null,null,null,null,null,null,null,null,null,null,null,null,null,null,null,null,null,null,null,null,null,null,null,null,null,null,null,null,null,null,null,null,null,null,null,null,null,null,null,null,null,null,null,null,null,null,null,null,{"$f":"IF(ISBLANK(U52),1,0)","v":1},"実施2年目標準間認定保育士"]
[null,null,null,null,null,null,null,null,null,null,null,null,null,null,null,null,null,null,null,null,null,null,null,null,null,null,null,null,null,null,null,null,null,null,null,null,null,null,null,null,null,null,null,null,null,null,null,null,null,{"$f":"IF(ISBLANK(AC52),1,0)","v":1},"実施2年目主任保育士専任加算"]
[null,null,null,null,null,null,null,null,null,null,null,null,null,null,null,null,null,null,null,null,null,null,null,null,null,null,null,null,null,null,null,null,null,null,null,null,null,null,null,null,null,null,null,null,null,null,null,null,null,{"$f":"IF(ISBLANK(B59),1,0)","v":1},"実施1年目保育士配置の考え方"]
[]
[]
[]
[]
[]
["入力内容の整合性を確認",null,null,null,null,null,null,null,null,null,null,null,"エラーだと”１”になる",null,null,null,null,null,null,null,null,null,null,null,null,"入力内容の確認の参考にしてください"]
[]
["○実施１年目"]
[]
[null,"チェック１.保育室面積合計",null,null,null,null,null,null,null,null,null,null,null,null,null,null,null,null,"チェック２.認可定員が面積基準を満たしているか"]
[null,null,"別紙の面積と一致しているか",null,null,null,null,null,null,null,null,null,null,null,null,null,null,null,null,null,null,null,null,null,null,null,null,null,null,0,1,"1'",2,3,45]
[null,null,null,null,null,null,null,null,null,null,null,{"$f":"IF(AN7=' 別紙 '!$AJ$5,0,1)","v":0},null,null,null,null,null,null,null,"面積緩和を使用しない場合",null,null,null,null,null,null,null,null,null,{"$f":"IF($L$9<=$L$12,0,1)","v":0},{"$f":"IF($P$9<=$P$12,0,1)","v":0},{"$f":"IF($T$9<=$T$12,0,1)","v":0},{"$f":"IF($X$9<=$X$12,0,1)","v":0},{"$f":"IF($AB$9<=$AB$12,0,1)","v":0},{"$f":"IF($AH$9<=$AH$12,0,1)","v":0},"←ここで１があっても、面積緩和を使えれば問題ない"]
[null,null,null,null,null,null,null,null,null,null,null,null,null,null,null,null,null,null,null,"面積緩和を使用する場合",null,null,null,null,null,null,null,null,null,{"$f":"IF($L$9<=$L$14,0,1)","v":0},{"$f":"IF($P$9<=$P$14,0,1)","v":0},{"$f":"IF($T$9<=$T$14,0,1)","v":0},{"$f":"IF($X$9<=$X$14,0,1)","v":0},{"$f":"IF($AB$9<=$AB$14,0,1)","v":0},{"$f":"IF($AH$9<=$AH$14,0,1)","v":0},"←ここに１があれば、定員をチェック"]
[]
[null,"チェック３.入所児童数が認可定員以内か"]
[null,null,null,null,null,null,null,null,null,0,1,2,3,4,5]
[null,null,null,null,null,null,null,null,null,{"$f":"IF($L$18<=$L$9,0,1)","v":0},{"$f":"IF($R$18<=$P$9+T9,0,1)","v":0},{"$f":"IF($X$18<=$X$9,0,1)","v":0},{"$f":"IF($AB$18<=$AB$9,0,1)","v":0},{"$f":"IF($AF$18<=$AF$9,0,1)","v":0},{"$f":"IF($AJ$18<=$AJ$9,0,1)","v":0}]
[]
[]
["○実施２年目"]
[]
[null,"チェック4.保育室面積合計",null,null,null,null,null,null,null,null,null,null,null,null,null,null,null,null,"チェック5.認可定員が面積基準を満たしているか"]
[null,null,"別紙の面積と一致しているか",null,null,null,null,null,null,null,null,null,null,null,null,null,null,null,null,null,null,null,null,null,null,null,null,null,null,0,1,2,"2'",3,45]
[null,null,null,null,null,null,null,null,null,null,null,{"$f":"IF(AN37=' 別紙 '!$AJ$5,0,1)","v":0},null,null,null,null,null,null,null,"面積緩和を使用しない場合",null,null,null,null,null,null,null,null,null,{"$f":"IF($L$39<=$L$42,0,1)","v":0},{"$f":"IF($P$39<=$P$42,0,1)","v":0},{"$f":"IF($T$39<=$T$42,0,1)","v":0},{"$f":"IF($X$39<=$X$42,0,1)","v":1},{"$f":"IF($AB$39<=$AB$42,0,1)","v":0},{"$f":"IF($AF$39+$AJ$39<=$AH$42,0,1)","v":0},"←ここで１があっても、面積緩和を使えれば問題ない"]
[null,null,null,null,null,null,null,null,null,null,null,null,null,null,null,null,null,null,null,"面積緩和を使用する場合",null,null,null,null,null,null,null,null,null,{"$f":"IF($L$39<=$L$44,0,1)","v":0},{"$f":"IF($P$39<=$P$44,0,1)","v":0},{"$f":"IF($T$39<=$T$44,0,1)","v":0},{"$f":"IF($X$39<=$X$44,0,1)","v":1},{"$f":"IF($AB$39<=$AB$44,0,1)","v":0},{"$f":"IF($AH$39<=$AH$44,0,1)","v":0},"←ここに１があれば、定員をチェック"]
[]
[null,"チェック6.入所児童数が認可定員以下か",null,null,null,null,null,null,null,null,null,null,null,null,null,null,null,null,"チェック7.入所1年目の児童が年齢進行できているか"]
[null,null,null,null,null,null,null,null,null,0,1,2,3,4,5,null,null,null,null,null,null,null,0,1,2,3,4,5]
[null,null,null,null,null,null,null,null,null,{"$f":"IF($L$48<=$L$39,0,1)","v":0},{"$f":"IF($P$48<=$P$39,0,1)","v":0},{"$f":"IF(V48<=SUM($X$39,$T$39),0,1)","v":0},{"$f":"IF($AB$48<=$AB$39,0,1)","v":0},{"$f":"IF($AF$48<=$AF$39,0,1)","v":0},{"$f":"IF($AJ$48<=$AJ$39,0,1)","v":0},null,null,null,null,null,null,null,null,{"$f":"IF($P$48>=$L$18,0,1)","v":0},{"$f":"IF($V$48>=$R$18,0,1)","v":0},{"$f":"IF($AB$48>=$X$18,0,1)","v":0},{"$f":"IF($AF$48>=$AB$18,0,1)","v":0},{"$f":"IF($AJ$48>=$AF$18,0,1)","v":0}]
[]
[]
[null,"主任保育士専任加算を受ける場合"]
[]
[null,"主幹保育教諭等を専任化させるための代替保育教諭等"]

{"sheet":"別紙①（面積基準緩和)","index":3,"n_rows":96,"n_cols":51,"rows_kept":96,"cut":false,"hidden":false,"merged":[[27,43,30,43],[37,31,37,33],[27,1,30,42],[34,35,35,38],[36,31,36,33],[36,35,36,37],[36,39,36,41],[36,27,36,29],[36,21,36,23],[37,1,37,10],[37,35,37,37],[35,19,35,22],[33,0,33,12],[34,0,35,10],[34,11,35,14],[34,15,35,18],[34,19,34,26],[34,31,35,34],[37,15,37,17],[37,27,37,29],[36,15,36,17],[17,39,17,41],[46,35,46,37],[46,39,46,41],[47,35,47,37],[37,39,37,41],[45,35,45,38],[20,36,20,38],[40,35,40,37],[39,39,39,42],[17,35,17,37],[44,0,44,42],[47,39,47,41],[42,39,42,41],[40,15,40,17],[40,27,40,29],[40,21,40,23],[41,1,42,10],[39,0,42,0],[39,1,40,10],[39,11,39,14],[39,15,39,18],[39,19,39,38],[41,11,41,38],[42,11,42,13],[45,15,45,18],[45,19,45,26],[45,27,45,30],[45,31,45,34],[46,1,46,10],[45,39,45,42],[47,31,47,33],[46,11,46,13],[46,15,46,17],[46,21,46,23],[46,27,46,29],[46,31,46,33],[45,0,45,10],[45,11,45,14],[47,1,47,10],[47,11,47,13],[47,15,47,17],[47,21,47,23],[47,27,47,29],[56,0,56,28],[57,1,60,42],[49,26,49,33],[49,34,49,41],[50,3,50,6],[50,12,50,14],[49,1,49,9],[49,10,49,17],[50,20,50,22],[50,28,50,30],[49,18,49,25],[50,36,50,38],[42,15,42,17],[42,27,42,29],[42,21,42,23],[42,31,42,33],[42,35,42,37],[40,39,40,41],[40,31,40,33],[40,11,40,13],[19,34,19,41],[19,26,19,33],[19,10,19,17],[19,18,19,25],[20,12,20,14],[20,20,20,22],[20,28,20,30],[36,11,36,13],[37,11,37,13],[32,8,32,10],[34,27,35,30],[35,23,35,26],[36,1,36,10],[26,0,26,28],[34,39,35,42],[32,11,32,12],[9,15,9,22],[9,23,9,38],[17,1,17,10],[17,11,17,13],[17,17,17,19],[17,23,17,25],[17,27,17,29],[17,31,17,33],[37,19,37,21],[37,23,37,25],[19,1,19,9],[20,3,20,6],[15,27,15,30],[15,31,15,34],[11,1,12,10],[11,11,11,38],[12,11,12,13],[12,23,12,25],[12,27,12,29],[12,31,12,33],[12,35,12,37],[15,35,15,38],[7,19,7,21],[7,23,7,25],[15,39,15,42],[16,1,16,10],[10,11,10,13],[10,23,10,25],[12,39,12,41],[14,0,14,42],[15,0,15,10],[15,11,15,14],[15,15,15,22],[15,23,15,26],[16,11,16,13],[16,17,16,19],[16,23,16,25],[16,27,16,29],[16,31,16,33],[16,35,16,37],[10,17,10,19],[12,17,12,19],[16,39,16,41],[9,0,12,0],[9,1,10,10],[9,11,9,14],[6,1,6,10],[6,11,6,13],[6,23,6,25],[6,31,6,33],[6,35,6,37],[6,17,6,19],[0,0,0,26],[7,39,7,41],[10,27,10,29],[10,39,10,41],[9,39,9,42],[10,31,10,33],[10,35,10,37],[6,27,6,29],[6,39,6,41],[4,31,5,34],[4,35,5,38],[4,39,5,42],[7,27,7,29],[7,31,7,33],[7,35,7,37],[7,1,7,10],[7,11,7,13],[7,15,7,17],[0,40,0,42],[2,0,2,6],[2,11,2,12],[3,0,3,12],[4,0,5,10],[4,11,5,14],[4,15,4,22],[4,23,5,26],[4,27,5,30],[2,8,2,10],[5,15,5,18],[5,19,5,22]]}
["【面積基準緩和を適用して実施する場合】",null,null,null,null,null,null,null,null,null,null,null,null,null,null,null,null,null,null,null,null,null,null,null,null,null,null,null,null,null,null,null,null,null,null,null,null,null,null,null,"別紙①",null,null,null,null,null,null,null,null,{"$f":"SUM(AX2:AX59)","v":32}]
[]
["●実施１年目",null,null,null,null,null,null,"（",{"$f":"'様式第1号 実施計画書'!K20","v":"00:00:00"},null,null,{"$f":"'様式第1号 実施計画書'!M20","v":0},null,"年度　）",null,null,null,null,null,null,null,null,null,null,null,null,null,null,null,null,null,null,null,null,null,null,null,null,null,null,null,null,null,null,null,null,null,null,null,{"$f":"IF(ISBLANK(L8),1,0)","v":1},"実施1年目認可定員0歳"]
[" 〇保育室等の活用計画",null,null,null,null,null,null,null,null,null,null,null,null,null,null,null,null,null,null,null,null,null,null,null,null,null,null,null,null,null,null,null,null,null,null,null,null,null,null,null,null,null,null,null,null,null,null,null,null,{"$f":"IF(ISBLANK(P8),1,0)","v":1},"実施1年目認可定員1歳"]
[null,null,null,null,null,null,null,null,null,null,null,"０歳",null,null,null,"１歳",null,null,null,null,null,null,null,"２歳",null,null,null,"３歳",null,null,null,"４歳",null,null,null,"５歳",null,null,null,"計",null,null,null,null,null,null,null,null,null,{"$f":"IF(ISBLANK(X8),1,0)","v":1},"実施1年目認可定員2歳"]
[null,null,null,null,null,null,null,null,null,null,null,null,null,null,null,"右記以外",null,null,null,"期間限定",null,null,null,null,null,null,null,null,null,null,null,null,null,null,null,null,null,null,null,null,null,null,null,null,null,null,null,null,null,{"$f":"IF(ISBLANK(AB8),1,0)","v":1},"実施1年目認可定員3歳"]
["①","保育室面積",null,null,null,null,null,null,null,null,null,{"$f":"' 別紙 '!L5","v":0},null,null,"㎡",null,null,{"$f":"' 別紙 '!P5","v":0},null,null,"㎡",null,null,{"$f":"' 別紙 '!T5","v":0},null,null,"㎡",{"$f":"' 別紙 '!X5","v":0},null,null,"㎡",{"$f":"' 別紙 '!AB5","v":0},null,null,"㎡",{"$f":"' 別紙 '!AF5","v":0},null,null,"㎡",{"$f":"L7+R7+X7+AB7+AF7+AJ7","v":0},null,null,"㎡",null,null,null,null,null,null,{"$f":"IF(ISBLANK(AF8),1,0)","v":1},"実施1年目認可定員4歳"]
["②","期間限定保育実施に\nよる変更後の認可定員",null,null,null,null,null,null,null,null,null,null,null,null,"人",null,null,null,"人",{"$f":"'様式第1号 実施計画書'!Y28","v":0},null,null,"人",null,null,null,"人",null,null,null,"人",null,null,null,"人",null,null,null,"人",{"$f":"SUM(L8:AL8)","v":0},null,null,"人",null,null,null,null,null,null,{"$f":"IF(ISBLANK(AJ8),1,0)","v":1},"実施1年目認可定員5歳"]
[]
["参考","定員上限（最大）\n①÷上段の児童１人あたりの面積",null,null,null,null,null,null,null,null,null,"5.0㎡／人",null,null,null,"3.3㎡／人",null,null,null,null,null,null,null,"1.98㎡／人",null,null,null,null,null,null,null,null,null,null,null,null,null,null,null,null,null,null,null,null,null,null,null,null,null,{"$f":"IF(ISBLANK(L17),1,0)","v":1},"実施1年目入所予定児童0歳児"]
[null,null,null,null,null,null,null,null,null,null,null,{"$f":"ROUNDDOWN(L7/5,0)","v":0},null,null,"人",null,null,{"$f":"ROUNDDOWN(R7/3.3,0)","v":0},null,null,"人",null,null,{"$f":"ROUNDDOWN(X7/1.98,0)","v":0},null,null,"人",{"$f":"ROUNDDOWN(AB7/1.98,0)","v":0},null,null,"人",{"$f":"ROUNDDOWN(AF7/1.98,0)","v":0},null,null,"人",{"$f":"ROUNDDOWN(AJ7/1.98,0)","v":0},null,null,"人",{"$f":"SUM(L11,R11,X11,AB11,AF11,AJ11)","v":0},null,null,"人",null,null,null,null,null,null,{"$f":"IF(ISBLANK(R17),1,0)","v":1},"実施1年目入所予定児童1歳児"]
[null,"面積基準緩和を適用した\n場合の定員上限（最大）\n①÷上段の児童１人あたりの面積",null,null,null,null,null,null,null,null,null,"1.65㎡／人",null,null,null,null,null,null,null,null,null,null,null,null,null,null,null,null,null,null,null,null,null,null,null,null,null,null,null,null,null,null,null,null,null,null,null,null,null,{"$f":"IF(ISBLANK(X17),1,0)","v":1},"実施1年目入所予定児童2歳児"]
[null,null,null,null,null,null,null,null,null,null,null,{"$f":"ROUNDDOWN(L7/1.65,0)","v":0},null,null,"人",null,null,{"$f":"ROUNDDOWN(R7/1.65,0)","v":0},null,null,"人",null,null,{"$f":"ROUNDDOWN(X7/1.65,0)","v":0},null,null,"人",{"$f":"ROUNDDOWN(AB7/1.65,0)","v":0},null,null,"人",{"$f":"ROUNDDOWN(AF7/1.65,0)","v":0},null,null,"人",{"$f":"ROUNDDOWN(AJ7/1.65,0)","v":0},null,null,"人",{"$f":"SUM(L13,R13,X13,AB13,AF13,AJ13)","v":0},null,null,"人",null,null,null,null,null,null,{"$f":"IF(ISBLANK(AB17),1,0)","v":1},"実施1年目入所予定児童3歳児"]
[null,null,null,null,null,null,null,null,null,null,null,null,null,null,null,null,null,null,null,null,null,null,null,null,null,null,null,null,null,null,null,null,null,null,null,null,null,null,null,null,null,null,null,null,null,null,null,null,null,{"$f":"IF(ISBLANK(AF17),1,0)","v":1},"実施1年目入所予定児童4歳児"]
[" 〇保育士等配置基準        ※　入所予定児童数は、進級やこれまでの新規入所や申込みの状況等を勘案して計画を立ててください。",null,null,null,null,null,null,null,null,null,null,null,null,null,null,null,null,null,null,null,null,null,null,null,null,null,null,null,null,null,null,null,null,null,null,null,null,null,null,null,null,null,null,null,null,null,null,null,null,{"$f":"IF(ISBLANK(AJ17),1,0)","v":1},"実施1年目入所予定児童5歳児"]
[null,null,null,null,null,null,null,null,null,null,null,"０歳",null,null,null,"１歳(期間限定含む)",null,null,null,null,null,null,null,"２歳",null,null,null,"３歳",null,null,null,"４歳",null,null,null,"５歳",null,null,null,"計"]
["③","入所予定児童数※",null,null,null,null,null,null,null,null,null,null,null,null,"人",null,null,null,null,null,"人",null,null,null,null,null,"人",null,null,null,"人",null,null,null,"人",null,null,null,"人",{"$f":"L17+R17+X17+AB17+AF17+AJ17","v":0},null,null,"人",null,null,null,null,null,null,{"$f":"IF(ISBLANK(M21),1,0)","v":1},"実施1年目休けい保育士"]
["④","保育士等配置基準数\n(歳児毎)",null,null,null,null,null,null,null,null,null,{"$f":"ROUNDDOWN(L17/3,1)","v":0},null,null,"人",null,null,{"$f":"ROUNDDOWN(R17/6,1)","v":0},null,null,"人",null,null,{"$f":"ROUNDDOWN(X17/6,1)","v":0},null,null,"人",{"$f":"ROUNDDOWN(AB17/20,1)","v":0},null,null,"人",{"$f":"ROUNDDOWN(AF17/30,1)","v":0},null,null,"人",{"$f":"ROUNDDOWN(AJ17/30,1)","v":0},null,null,"人",{"$f":"ROUND(SUM(L18:AL18),0)","v":0},null,null,"人",null,null,null,null,null,null,{"$f":"IF(ISBLANK(U21),1,0)","v":1},"実施1年目標準間認定保育士"]
[null,null,null,null,null,null,null,null,null,null,null,null,null,null,null,null,null,null,null,null,null,null,null,null,null,null,null,null,null,null,null,null,null,null,null,null,null,null,null,null,null,null,null,null,null,null,null,null,null,{"$f":"IF(ISBLANK(AC21),1,0)","v":1},"実施1年目主任保育士専任加算"]
[null,"保育士等配置基準数\n(歳児毎)",null,null,null,null,null,null,null,null,"休けい保育士等\n(定員90人以下の場合)",null,null,null,null,null,null,null,"標準時間認定の児童\nを受け入れる場合",null,null,null,null,null,null,null,null,null,null,null,null,null,null,null,"合  計",null,null,null,null,null,null,null,null,null,null,null,null,null,null,null,"□にレがついているか"]
[null,null,null,{"$f":"AN18","v":0},null,null,null,"人",null,null,null,null,null,null,null,"人",null,null,null,null,null,null,null,"人",null,null,null,null,null,null,null,"人",null,null,null,null,{"$f":"D21+M21+U21+AC21","v":0},null,null,"人",null,null,null,null,null,null,null,null,null,{"$f":"IF(ISBLANK(B28),1,0)","v":1},"実施1年目　保育士配置に係る法人の考え方"]
[]
[null,"次の□にレ印をつけてください。"]
[null,null,null,"上記の保育士等配置基準のほか、補助事業にあたっては補助要綱等に定める保育士等配置基準、また"]
[null,null,null,"保育士等以外の看護師、調理員等、保育にかかる全ての職員配置基準を遵守します。"]
[]
[" 〇保育士等配置に係る法人の考え方（保育士等の雇用確保の方法を含む）"]
[null,null,null,null,null,null,null,null,null,null,null,null,null,null,null,null,null,null,null,null,null,null,null,null,null,null,null,null,null,null,null,null,null,null,null,null,null,null,null,null,null,null,null,"配置基準を上回る配置を、現員数・退職予定者数・新規採用予定者数（確保の方法も）を勘案すると実現できることなど、を記載。"]
[]
[]
[]
[]
["●実施２年目",null,null,null,null,null,null,"（",{"$f":"'様式第1号 実施計画書'!Q29","v":""},null,null,{"$f":"'様式第1号 実施計画書'!T29","v":""},null,"年度　）",null,null,null,null,null,null,null,"実施期間が１年間の場合は、記入は不要です。",null,null,null,null,null,null,null,null,null,null,null,null,null,null,null,null,null,null,null,null,null,null,null,null,null,null,null,{"$f":"IF(ISBLANK(L38),1,0)","v":1},"実施2年目認可定員0歳"]
[" 〇保育室等の活用計画",null,null,null,null,null,null,null,null,null,null,null,null,null,null,null,null,null,null,null,null,null,null,null,null,null,null,null,null,null,null,null,null,null,null,null,null,null,null,null,null,null,null,null,null,null,null,null,null,{"$f":"IF(ISBLANK(P38),1,0)","v":1},"実施2年目認可定員1歳"]
[null,null,null,null,null,null,null,null,null,null,null,"０歳",null,null,null,"１歳",null,null,null,"２歳",null,null,null,null,null,null,null,"３歳",null,null,null,"４歳",null,null,null,"５歳",null,null,null,"計",null,null,null,null,null,null,null,null,null,{"$f":"IF(ISBLANK(T38),1,0)","v":1},"実施2年目認可定員2歳"]
[null,null,null,null,null,null,null,null,null,null,null,null,null,null,null,null,null,null,null,"右記以外",null,null,null,"期間限定",null,null,null,null,null,null,null,null,null,null,null,null,null,null,null,null,null,null,null,null,null,null,null,null,null,{"$f":"IF(ISBLANK(AB38),1,0)","v":1},"実施2年目認可定員3歳"]
["①","保育室面積",null,null,null,null,null,null,null,null,null,{"$f":"L7","v":0},null,null,"㎡",{"$f":"R7","v":0},null,null,"㎡",null,null,{"$f":"X7","v":0},null,null,"㎡",null,null,{"$f":"AB7","v":0},null,null,"㎡",{"$f":"AF7","v":0},null,null,"㎡",{"$f":"AJ7","v":0},null,null,"㎡",{"$f":"L37+P37+V37+AB37+AF37+AJ37","v":0},null,null,"㎡",null,null,null,null,null,null,{"$f":"IF(ISBLANK(AF38),1,0)","v":1},"実施2年目認可定員4歳"]
["②","期間限定保育実施に\nよる変更後の認可定員",null,null,null,null,null,null,null,null,null,null,null,null,"人",null,null,null,"人",null,null,null,"人",{"$f":"'様式第1号 実施計画書'!AC29","v":""},null,null,"人",null,null,null,"人",null,null,null,"人",null,null,null,"人",{"$f":"SUM(L38:AL38)","v":0},null,null,"人",null,null,null,null,null,null,{"$f":"IF(ISBLANK(AJ38),1,0)","v":1},"実施2年目認可定員5歳"]
[]
["参考","定員上限（最大）\n①÷上段の児童１人あたりの面積",null,null,null,null,null,null,null,null,null,"5.0㎡／人",null,null,null,"3.3㎡／人",null,null,null,"1.98㎡／人",null,null,null,null,null,null,null,null,null,null,null,null,null,null,null,null,null,null,null,null,null,null,null,null,null,null,null,null,null,{"$f":"IF(ISBLANK(L47),1,0)","v":1},"実施2年目入所予定児童0歳児"]
[null,null,null,null,null,null,null,null,null,null,null,{"$f":"ROUNDDOWN(L37/5,0)","v":0},null,null,"人",{"$f":"ROUNDDOWN(P37/3.3,0)","v":0},null,null,"人",null,null,{"$f":"ROUNDDOWN(V37/1.98,0)","v":0},null,null,"人",null,null,{"$f":"ROUNDDOWN(AB37/1.98,0)","v":0},null,null,"人",{"$f":"ROUNDDOWN(AF37/1.98,0)","v":0},null,null,"人",{"$f":"ROUNDDOWN(AJ37/1.98,0)","v":0},null,null,"人",{"$f":"SUM(L41:AL41)","v":0},null,null,"人",null,null,null,null,null,null,{"$f":"IF(ISBLANK(P47),1,0)","v":1},"実施2年目入所予定児童1歳児"]
[null,"面積基準緩和を適用した\n場合の定員上限（最大）\n①÷上段の児童１人あたりの面積",null,null,null,null,null,null,null,null,null,"1.65㎡／人",null,null,null,null,null,null,null,null,null,null,null,null,null,null,null,null,null,null,null,null,null,null,null,null,null,null,null,null,null,null,null,null,null,null,null,null,null,{"$f":"IF(ISBLANK(V47),1,0)","v":1},"実施2年目入所予定児童2歳児"]
[null,null,null,null,null,null,null,null,null,null,null,{"$f":"ROUNDDOWN(L37/1.65,0)","v":0},null,null,"人",{"$f":"ROUNDDOWN(P37/1.65,0)","v":0},null,null,"人",null,null,{"$f":"ROUNDDOWN(V37/1.65,0)","v":0},null,null,"人",null,null,{"$f":"ROUNDDOWN(AB37/1.65,0)","v":0},null,null,"人",{"$f":"ROUNDDOWN(AF37/1.65,0)","v":0},null,null,"人",{"$f":"ROUNDDOWN(AJ37/1.65,0)","v":0},null,null,"人",{"$f":"SUM(L43:AL43)","v":0},null,null,"人",null,null,null,null,null,null,{"$f":"IF(ISBLANK(AB47),1,0)","v":1},"実施2年目入所予定児童3歳児"]
[null,null,null,null,null,null,null,null,null,null,null,null,null,null,null,null,null,null,null,null,null,null,null,null,null,null,null,null,null,null,null,null,null,null,null,null,null,null,null,null,null,null,null,null,null,null,null,null,null,{"$f":"IF(ISBLANK(AF47),1,0)","v":1},"実施2年目入所予定児童4歳児"]
[" 〇保育士等配置基準        ※　入所予定児童数は、進級やこれまでの新規入所や申込みの状況等を勘案して計画を立ててください。",null,null,null,null,null,null,null,null,null,null,null,null,null,null,null,null,null,null,null,null,null,null,null,null,null,null,null,null,null,null,null,null,null,null,null,null,null,null,null,null,null,null,null,null,null,null,null,null,{"$f":"IF(ISBLANK(AJ47),1,0)","v":1},"実施2年目入所予定児童5歳児"]
[null,null,null,null,null,null,null,null,null,null,null,"０歳",null,null,null,"１歳",null,null,null,"２歳(期間限定含む)",null,null,null,null,null,null,null,"３歳",null,null,null,"４歳",null,null,null,"５歳",null,null,null,"計"]
["③","入所予定児童数※",null,null,null,null,null,null,null,null,null,null,null,null,"人",null,null,null,"人",null,null,null,null,null,"人",null,null,null,null,null,"人",null,null,null,"人",null,null,null,"人",{"$f":"SUM(L47:AM47)","v":0},null,null,"人",null,null,null,null,null,null,{"$f":"IF(ISBLANK(M51),1,0)","v":1},"実施2年目休けい保育士"]
["④","保育士等配置基準数\n(歳児毎)",null,null,null,null,null,null,null,null,null,{"$f":"ROUNDDOWN(L47/3,1)","v":0},null,null,"人",{"$f":"ROUNDDOWN(P47/6,1)","v":0},null,null,"人",null,null,{"$f":"ROUNDDOWN(V47/6,1)","v":0},null,null,"人",null,null,{"$f":"ROUNDDOWN(AB47/20,1)","v":0},null,null,"人",{"$f":"ROUNDDOWN(AF47/30,1)","v":0},null,null,"人",{"$f":"ROUNDDOWN(AJ47/30,1)","v":0},null,null,"人",{"$f":"ROUND(SUM(L48:AL48),0)","v":0},null,null,"人",null,null,null,null,null,null,{"$f":"IF(ISBLANK(U51),1,0)","v":1},"実施2年目標準間認定保育士"]
[null,null,null,null,null,null,null,null,null,null,null,null,null,null,null,null,null,null,null,null,null,null,null,null,null,null,null,null,null,null,null,null,null,null,null,null,null,null,null,null,null,null,null,null,null,null,null,null,null,{"$f":"IF(ISBLANK(AC51),1,0)","v":1},"実施2年目主任保育士専任加算"]
[null,"保育士等配置基準数\n(歳児毎)",null,null,null,null,null,null,null,null,"休けい保育士等\n(定員90人以下の場合)",null,null,null,null,null,null,null,"標準時間認定の児童\nを受け入れる場合",null,null,null,null,null,null,null,null,null,null,null,null,null,null,null,"合  計",null,null,null,null,null,null,null,null,null,null,null,null,null,null,null,"□にレがついているか"]
[null,null,null,{"$f":"AN48","v":0},null,null,null,"人",null,null,null,null,null,null,null,"人",null,null,null,null,null,null,null,"人",null,null,null,null,null,null,null,"人",null,null,null,null,{"$f":"SUM(D51:AJ51)","v":0},null,null,"人",null,null,null,null,null,null,null,null,null,{"$f":"IF(ISBLANK(B58),1,0)","v":1},"実施２年目　保育士配置に係る法人の考え方"]
[]
[null,"次の□にレ印をつけてください。"]
[null,null,null,"上記の保育士等配置基準のほか、補助事業にあたっては補助要綱等に定める保育士等配置基準、また"]
[null,null,null,"保育士等以外の看護師、調理員等、保育にかかる全ての職員配置基準を遵守します。"]
[]
[" 〇保育士等配置に係る法人の考え方（保育士等の雇用確保の方法を含む）"]
[]
[]
[]
[]
[]
[]
[]
[]
[]
[]
["入力内容の整合性を確認",null,null,null,null,null,null,null,null,null,null,null,"エラーだと”１”になる",null,null,null,null,null,null,null,null,null,null,null,null,"入力内容の確認の参考にしてください"]
[]
["○実施１年目"]
[]
[null,"チェック１.保育室面積合計",null,null,null,null,null,null,null,null,null,null,null,null,null,null,null,null,"チェック２.認可定員が面積基準を満たしているか"]
[null,null,"別紙の面積と一致しているか",null,null,null,null,null,null,null,null,null,null,null,null,null,null,null,null,null,null,null,null,null,null,null,null,null,null,0,1,2,3,4,5]
[null,null,null,null,null,null,null,null,null,null,null,{"$f":"IF(AN7=' 別紙 '!$AJ$5,0,1)","v":0},null,null,null,null,null,null,null,"面積緩和を使用しない場合",null,null,null,null,null,null,null,null,null,{"$f":"IF($L$8<=$L$11,0,1)","v":0},{"$f":"IF($P$8+$T$8<=$R$11,0,1)","v":0},{"$f":"IF($X$8<=$X$11,0,1)","v":0},{"$f":"IF($AB$8<=$AB$11,0,1)","v":0},{"$f":"IF($AF$8<=$AF$11,0,1)","v":0},{"$f":"IF($AJ$8<=$AJ$11,0,1)","v":0},"←ここで１があっても、面積緩和を使えれば問題ない"]
[null,null,null,null,null,null,null,null,null,null,null,null,null,null,null,null,null,null,null,"面積緩和を使用する場合",null,null,null,null,null,null,null,null,null,{"$f":"IF($L$8<=$L$13,0,1)","v":0},{"$f":"IF($P$8+$T$8<=$R$13,0,1)","v":0},{"$f":"IF($X$8<=$X$13,0,1)","v":0},{"$f":"IF($AB$8<=$AB$13,0,1)","v":0},{"$f":"IF($AF$8<=$AF$13,0,1)","v":0},{"$f":"IF($AJ$8<=$AJ$13,0,1)","v":0},"←ここに１があれば、定員をチェック"]
[]
[null,"チェック３.入所児童数が認可定員以内か"]
[null,null,null,null,null,null,null,null,null,0,1,2,3,4,5]
[null,null,null,null,null,null,null,null,null,{"$f":"IF($L$17<=$L$8,0,1)","v":0},{"$f":"IF($R$17<=$P$8+T8,0,1)","v":0},{"$f":"IF($X$17<=$X$8,0,1)","v":0},{"$f":"IF($AB$17<=$AB$8,0,1)","v":0},{"$f":"IF($AF$17<=$AF$8,0,1)","v":0},{"$f":"IF($AJ$17<=$AJ$8,0,1)","v":0}]
[]
[]
["○実施２年目"]
[]
[null,"チェック4.保育室面積合計",null,null,null,null,null,null,null,null,null,null,null,null,null,null,null,null,"チェック5.認可定員が面積基準を満たしているか"]
[null,null,"別紙の面積と一致しているか",null,null,null,null,null,null,null,null,null,null,null,null,null,null,null,null,null,null,null,null,null,null,null,null,null,null,0,1,2,3,4,5]
[null,null,null,null,null,null,null,null,null,null,null,{"$f":"IF(AN37=' 別紙 '!$AJ$5,0,1)","v":0},null,null,null,null,null,null,null,"面積緩和を使用しない場合",null,null,null,null,null,null,null,null,null,{"$f":"IF($L$38<=$L$41,0,1)","v":0},{"$f":"IF($P$38<=$P$41,0,1)","v":0},{"$f":"IF(SUM(T38:Z38)<=$V$41,0,1)","v":0},{"$f":"IF($AB$38<=$AB$41,0,1)","v":0},{"$f":"IF($AF$38<=$AF$41,0,1)","v":0},{"$f":"IF($AJ$38<=$AJ$41,0,1)","v":0},"←ここで１があっても、面積緩和を使えれば問題ない"]
[null,null,null,null,null,null,null,null,null,null,null,null,null,null,null,null,null,null,null,"面積緩和を使用する場合",null,null,null,null,null,null,null,null,null,{"$f":"IF($L$38<=$L$43,0,1)","v":0},{"$f":"IF($P$38<=$P$43,0,1)","v":0},{"$f":"IF(SUM(T38:Z38)<=$V$43,0,1)","v":0},{"$f":"IF($AB$38<=$AB$43,0,1)","v":0},{"$f":"IF($AF$38<=$AF$43,0,1)","v":0},{"$f":"IF($AJ$38<=$AJ$43,0,1)","v":0},"←ここに１があれば、定員をチェック"]
[]
[null,"チェック6.入所児童数が認可定員以下か",null,null,null,null,null,null,null,null,null,null,null,null,null,null,null,null,"チェック7.入所1年目の児童が年齢進行できているか"]
[null,null,null,null,null,null,null,null,null,0,1,2,3,4,5,null,null,null,null,null,null,null,0,1,2,3,4,5]
[null,null,null,null,null,null,null,null,null,{"$f":"IF($L$47<=$L$38,0,1)","v":0},{"$f":"IF($P$47<=$P$38,0,1)","v":0},{"$f":"IF(V47<=SUM(T38:Z38),0,1)","v":0},{"$f":"IF($AB$47<=$AB$38,0,1)","v":0},{"$f":"IF($AF$47<=$AF$38,0,1)","v":0},{"$f":"IF($AJ$47<=$AJ$38,0,1)","v":0},null,null,null,null,null,null,null,null,{"$f":"IF($P$47>=$L$17,0,1)","v":0},{"$f":"IF($V$47>=$R$17,0,1)","v":0},{"$f":"IF($AB$47>=$X$17,0,1)","v":0},{"$f":"IF($AF$47>=$AB$17,0,1)","v":0},{"$f":"IF($AJ$47>=$AF$17,0,1)","v":0}]
[]
[]
[null,"主任保育士専任加算を受ける場合"]
[]
[null,"主幹保育教諭等を専任化させるための代替保育教諭等"]

{"sheet":"別紙①（その他の場合） ","index":4,"n_rows":96,"n_cols":51,"rows_kept":96,"cut":false,"hidden":false,"merged":[[0,43,3,43],[28,43,30,43],[16,35,16,38],[10,0,13,0],[16,39,16,42],[17,1,17,10],[17,11,17,13],[17,17,17,19],[17,23,17,25],[17,27,17,29],[7,31,7,33],[7,35,7,37],[7,39,7,42],[6,35,6,37],[2,8,2,10],[11,31,11,33],[11,35,11,37],[13,31,13,33],[13,35,13,37],[4,23,5,26],[4,27,5,30],[4,31,5,34],[11,19,11,21],[5,15,5,18],[6,31,6,33],[0,0,0,26],[0,40,0,42],[2,0,2,6],[2,11,2,12],[3,0,3,12],[4,0,5,10],[4,11,5,14],[4,15,4,22],[4,35,5,38],[4,39,5,42],[5,19,5,22],[6,27,6,29],[6,39,6,41],[7,1,7,10],[7,11,7,13],[7,15,7,17],[7,19,7,21],[7,23,7,25],[7,27,7,29],[6,1,6,10],[6,11,6,13],[6,15,6,17],[6,19,6,21],[6,23,6,25],[8,31,8,33],[8,35,8,37],[8,15,8,17],[8,19,8,21],[8,23,8,25],[8,39,8,41],[10,1,11,10],[10,11,10,14],[10,15,10,22],[10,23,10,38],[10,39,10,42],[11,11,11,13],[11,15,11,17],[8,1,8,10],[8,11,8,13],[8,27,8,29],[11,23,11,25],[11,27,11,29],[11,39,11,41],[12,1,13,10],[12,11,12,38],[13,11,13,13],[13,15,13,17],[13,19,13,21],[13,23,13,25],[16,23,16,26],[16,27,16,30],[13,39,13,41],[15,0,15,42],[16,0,16,10],[16,11,16,14],[16,15,16,22],[13,27,13,29],[20,10,20,17],[20,18,20,25],[20,26,20,33],[16,31,16,34],[20,34,20,41],[18,1,18,10],[18,11,18,13],[18,17,18,19],[18,27,18,29],[18,31,18,33],[17,31,17,33],[33,0,33,12],[34,0,35,10],[34,11,35,14],[34,15,35,18],[34,19,34,26],[34,27,35,30],[17,35,17,37],[17,39,17,41],[18,35,18,37],[18,39,18,41],[28,1,30,42],[21,36,21,38],[27,0,27,28],[21,3,21,6],[18,23,18,25],[21,12,21,14],[21,20,21,22],[21,28,21,30],[32,11,32,12],[34,39,35,42],[35,19,35,22],[35,23,35,26],[32,8,32,10],[20,1,20,9],[38,15,38,17],[38,19,38,21],[38,23,38,25],[38,27,38,29],[34,31,35,34],[34,35,35,38],[36,15,36,17],[36,19,36,21],[36,23,36,25],[36,27,36,29],[36,31,36,33],[36,35,36,37],[37,31,37,33],[37,35,37,37],[41,19,41,21],[41,23,41,25],[41,27,41,29],[36,39,36,41],[37,1,37,10],[37,11,37,13],[37,15,37,17],[37,19,37,21],[37,23,37,25],[37,27,37,29],[37,39,37,42],[36,1,36,10],[36,11,36,13],[41,39,41,41],[38,31,38,33],[38,35,38,37],[38,39,38,41],[40,15,40,18],[40,19,40,38],[40,39,40,42],[41,31,41,33],[41,35,41,37],[38,1,38,10],[38,11,38,13],[43,39,43,41],[45,0,45,42],[46,0,46,10],[46,11,46,14],[46,15,46,18],[46,19,46,26],[46,27,46,30],[46,31,46,34],[46,35,46,38],[46,39,46,42],[42,1,43,10],[42,11,42,38],[43,11,43,13],[43,15,43,17],[43,19,43,21],[43,23,43,25],[43,27,43,29],[40,0,43,0],[40,1,41,10],[40,11,40,14],[41,11,41,13],[43,31,43,33],[43,35,43,37],[41,15,41,17],[47,35,47,37],[47,39,47,41],[48,1,48,10],[48,11,48,13],[48,15,48,17],[48,21,48,23],[48,27,48,29],[48,31,48,33],[48,35,48,37],[48,39,48,41],[47,1,47,10],[47,11,47,13],[47,15,47,17],[47,21,47,23],[47,27,47,29],[47,31,47,33],[57,0,57,28],[58,1,60,42],[50,1,50,9],[50,10,50,17],[50,18,50,25],[50,26,50,33],[50,34,50,41],[51,3,51,6],[51,12,51,14],[51,20,51,22],[51,28,51,30],[51,36,51,38]]}
["【その他の場合】",null,null,null,null,null,null,null,null,null,null,null,null,null,null,null,null,null,null,null,null,null,null,null,null,null,null,null,null,null,null,null,null,null,null,null,null,null,null,null,"別紙①",null,null,"使用していない保育室や多目的室の活用(保育室のスライド・定員の見直しも場合によってはあり)を想定\n",null,null,null,null,null,{"$f":"SUM(AX2:AX71)","v":59}]
[]
["●実施１年目",null,null,null,null,null,null,"（",{"$f":"'様式第1号 実施計画書'!K20","v":"00:00:00"},null,null,{"$f":"'様式第1号 実施計画書'!M20","v":0},null,"年度　）",null,null,null,null,null,null,null,null,null,null,null,null,null,null,null,null,null,null,null,null,null,null,null,null,null,null,null,null,null,null,null,null,null,null,null,{"$f":"IF(ISBLANK(L7),1,0)","v":1},"実施1年目0歳児面積"]
[" 〇保育室等の活用計画",null,null,null,null,null,null,null,null,null,null,null,null,null,null,null,null,null,null,null,null,null,null,null,null,null,null,null,null,null,null,null,null,null,null,null,null,null,null,null,null,null,null,null,null,null,null,null,null,{"$f":"IF(ISBLANK(P7),1,0)","v":1},"実施1年目1歳児面積"]
[null,null,null,null,null,null,null,null,null,null,null,"０歳",null,null,null,"１歳",null,null,null,null,null,null,null,"２歳",null,null,null,"３歳",null,null,null,"４歳",null,null,null,"５歳",null,null,null,"計",null,null,null,null,null,null,null,null,null,{"$f":"IF(ISBLANK(T7),1,0)","v":1},"実施1年目1歳児(期間限定)面積"]
[null,null,null,null,null,null,null,null,null,null,null,null,null,null,null,"右記以外",null,null,null,"期間限定",null,null,null,null,null,null,null,null,null,null,null,null,null,null,null,null,null,null,null,null,null,null,null,null,null,null,null,null,null,{"$f":"IF(ISBLANK(X7),1,0)","v":1},"実施1年目2歳児面積"]
["①","保育室面積",null,null,null,null,null,null,null,null,null,null,null,null,"㎡",null,null,null,"㎡",null,null,null,"㎡",null,null,null,"㎡",null,null,null,"㎡",null,null,null,"㎡",null,null,null,"㎡",{"$f":"L7+P7+T7+X7+AB7+AF7+AJ7","v":0},null,null,"㎡",null,null,null,null,null,null,{"$f":"IF(ISBLANK(AB7),1,0)","v":1},"実施1年目3歳児面積"]
["②","保育室の設置階",null,null,null,null,null,null,null,null,null,null,null,null,"階",null,null,null,"階",null,null,null,"階",null,null,null,"階",null,null,null,"階",null,null,null,"階",null,null,null,"階",null,null,null,null,null,null,null,null,null,null,{"$f":"IF(ISBLANK(AF7),1,0)","v":1},"実施1年目4歳児面積"]
["③","期間限定保育実施に\nよる変更後の認可定員",null,null,null,null,null,null,null,null,null,null,null,null,"人",null,null,null,"人",{"$f":"'様式第1号 実施計画書'!Y28","v":0},null,null,"人",null,null,null,"人",null,null,null,"人",null,null,null,"人",null,null,null,"人",{"$f":"L9+P9+T9+X9+AB9+AF9+AJ9","v":0},null,null,"人",null,null,null,null,null,null,{"$f":"IF(ISBLANK(AJ7),1,0)","v":1},"実施1年目5歳児面積"]
[null,null,null,null,null,null,null,null,null,null,null,null,null,null,null,null,null,null,null,null,null,null,null,null,null,null,null,null,null,null,null,null,null,null,null,null,null,null,null,null,null,null,null,null,null,null,null,null,null,{"$f":"IF(ISBLANK(L8),1,0)","v":1},"実施1年目保育室の設置階0歳児"]
["参考","定員上限（最大）\n①÷上段の児童１人あたりの面積",null,null,null,null,null,null,null,null,null,"5.0㎡／人",null,null,null,"3.3㎡／人",null,null,null,null,null,null,null,"1.98㎡／人",null,null,null,null,null,null,null,null,null,null,null,null,null,null,null,null,null,null,null,null,null,null,null,null,null,{"$f":"IF(ISBLANK(P8),1,0)","v":1},"実施1年目保育室の設置階1歳児"]
[null,null,null,null,null,null,null,null,null,null,null,{"$f":"ROUNDDOWN(L7/5,0)","v":0},null,null,"人",{"$f":"ROUNDDOWN(P7/3.3,0)","v":0},null,null,"人",{"$f":"ROUNDDOWN(T7/3.3,0)","v":0},null,null,"人",{"$f":"ROUNDDOWN(X7/1.98,0)","v":0},null,null,"人",{"$f":"ROUNDDOWN(AB7/1.98,0)","v":0},null,null,"人",{"$f":"ROUNDDOWN(AF7/1.98,0)","v":0},null,null,"人",{"$f":"ROUNDDOWN(AJ7/1.98,0)","v":0},null,null,"人",{"$f":"SUM(L12:AL12)","v":0},null,null,"人",null,null,null,null,null,null,{"$f":"IF(ISBLANK(T8),1,0)","v":1},"実施1年目保育室の設置階1歳児(期間限定)"]
[null,"面積基準緩和を適用した\n場合の定員上限（最大）\n①÷上段の児童１人あたりの面積",null,null,null,null,null,null,null,null,null,"1.65㎡／人",null,null,null,null,null,null,null,null,null,null,null,null,null,null,null,null,null,null,null,null,null,null,null,null,null,null,null,null,null,null,null,null,null,null,null,null,null,{"$f":"IF(ISBLANK(X8),1,0)","v":1},"実施1年目保育室の設置階2歳児"]
[null,null,null,null,null,null,null,null,null,null,null,{"$f":"ROUNDDOWN(L7/1.65,0)","v":0},null,null,"人",{"$f":"ROUNDDOWN(P7/1.65,0)","v":0},null,null,"人",{"$f":"ROUNDDOWN(T7/1.65,0)","v":0},null,null,"人",{"$f":"ROUNDDOWN(X7/1.65,0)","v":0},null,null,"人",{"$f":"ROUNDDOWN(AB7/1.65,0)","v":0},null,null,"人",{"$f":"ROUNDDOWN(AF7/1.65,0)","v":0},null,null,"人",{"$f":"ROUNDDOWN(AJ7/1.65,0)","v":0},null,null,"人",{"$f":"SUM(L14:AL14)","v":0},null,null,"人",null,null,null,null,null,null,{"$f":"IF(ISBLANK(AB8),1,0)","v":1},"実施1年目保育室の設置階3歳児"]
[null,null,null,null,null,null,null,null,null,null,null,null,null,null,null,null,null,null,null,null,null,null,null,null,null,null,null,null,null,null,null,null,null,null,null,null,null,null,null,null,null,null,null,null,null,null,null,null,null,{"$f":"IF(ISBLANK(AJ8),1,0)","v":1},"実施1年目保育室の設置階4・5歳児"]
[" 〇保育士等配置基準        ※　入所予定児童数は、進級やこれまでの新規入所や申込みの状況等を勘案して計画を立ててください。",null,null,null,null,null,null,null,null,null,null,null,null,null,null,null,null,null,null,null,null,null,null,null,null,null,null,null,null,null,null,null,null,null,null,null,null,null,null,null,null,null,null,null,null,null,null,null,null,{"$f":"IF(ISBLANK(L9),1,0)","v":1},"実施1年目認可定員0歳"]
[null,null,null,null,null,null,null,null,null,null,null,"０歳",null,null,null,"１歳(期間限定含む)",null,null,null,null,null,null,null,"２歳",null,null,null,"３歳",null,null,null,"４歳",null,null,null,"５歳",null,null,null,"計",null,null,null,null,null,null,null,null,null,{"$f":"IF(ISBLANK(P9),1,0)","v":1},"実施1年目認可定員1歳"]
["④","入所予定児童数※",null,null,null,null,null,null,null,null,null,null,null,null,"人",null,null,null,null,null,"人",null,null,null,null,null,"人",null,null,null,"人",null,null,null,"人",null,null,null,"人",{"$f":"L18+R18+X18+AB18+AF18+AJ18","v":0},null,null,"人",null,null,null,null,null,null,{"$f":"IF(ISBLANK(X9),1,0)","v":1},"実施1年目認可定員2歳"]
["⑤","保育士等配置基準数\n(歳児毎)",null,null,null,null,null,null,null,null,null,{"$f":"ROUNDDOWN(L18/3,1)","v":0},null,null,"人",null,null,{"$f":"ROUNDDOWN(R18/6,1)","v":0},null,null,"人",null,null,{"$f":"ROUNDDOWN(X18/6,1)","v":0},null,null,"人",{"$f":"ROUNDDOWN(AB18/20,1)","v":0},null,null,"人",{"$f":"ROUNDDOWN(AF18/30,1)","v":0},null,null,"人",{"$f":"ROUNDDOWN(AJ18/30,1)","v":0},null,null,"人",{"$f":"ROUND(SUM(L19:AL19),0)","v":0},null,null,"人",null,null,null,null,null,null,{"$f":"IF(ISBLANK(AB9),1,0)","v":1},"実施1年目認可定員3歳"]
[null,null,null,null,null,null,null,null,null,null,null,null,null,null,null,null,null,null,null,null,null,null,null,null,null,null,null,null,null,null,null,null,null,null,null,null,null,null,null,null,null,null,null,null,null,null,null,null,null,{"$f":"IF(ISBLANK(AF9),1,0)","v":1},"実施1年目認可定員4歳"]
[null,"保育士等配置基準数\n(歳児毎)",null,null,null,null,null,null,null,null,"休けい保育士等\n(定員90人以下の場合)",null,null,null,null,null,null,null,"標準時間認定の児童\nを受け入れる場合",null,null,null,null,null,null,null,null,null,null,null,null,null,null,null,"合  計",null,null,null,null,null,null,null,null,null,null,null,null,null,null,{"$f":"IF(ISBLANK(AJ9),1,0)","v":1},"実施1年目認可定員5歳"]
[null,null,null,{"$f":"AN19","v":0},null,null,null,"人",null,null,null,null,null,null,null,"人",null,null,null,null,null,null,null,"人",null,null,null,null,null,null,null,"人",null,null,null,null,{"$f":"D22+M22+U22+AC22","v":0},null,null,"人",null,null,null,null,null,null,null,null,null,{"$f":"IF(ISBLANK(L18),1,0)","v":1},"実施1年目入所予定児童0歳児"]
[null,null,null,null,null,null,null,null,null,null,null,null,null,null,null,null,null,null,null,null,null,null,null,null,null,null,null,null,null,null,null,null,null,null,null,null,null,null,null,null,null,null,null,null,null,null,null,null,null,{"$f":"IF(ISBLANK(R18),1,0)","v":1},"実施1年目入所予定児童1歳児"]
[null,"次の□にレ印をつけてください。",null,null,null,null,null,null,null,null,null,null,null,null,null,null,null,null,null,null,null,null,null,null,null,null,null,null,null,null,null,null,null,null,null,null,null,null,null,null,null,null,null,null,null,null,null,null,null,{"$f":"IF(ISBLANK(X18),1,0)","v":1},"実施1年目入所予定児童2歳児"]
[null,null,null,"上記の保育士等配置基準のほか、補助事業にあたっては補助要綱等に定める保育士等配置基準、また",null,null,null,null,null,null,null,null,null,null,null,null,null,null,null,null,null,null,null,null,null,null,null,null,null,null,null,null,null,null,null,null,null,null,null,null,null,null,null,null,null,null,null,null,null,{"$f":"IF(ISBLANK(AB18),1,0)","v":1},"実施1年目入所予定児童3歳児"]
[null,null,null,"保育士等以外の看護師、調理員等、保育にかかる全ての職員配置基準を遵守します。",null,null,null,null,null,null,null,null,null,null,null,null,null,null,null,null,null,null,null,null,null,null,null,null,null,null,null,null,null,null,null,null,null,null,null,null,null,null,null,null,null,null,null,null,null,{"$f":"IF(ISBLANK(AF18),1,0)","v":1},"実施1年目入所予定児童4歳児"]
[null,null,null,null,null,null,null,null,null,null,null,null,null,null,null,null,null,null,null,null,null,null,null,null,null,null,null,null,null,null,null,null,null,null,null,null,null,null,null,null,null,null,null,null,null,null,null,null,null,{"$f":"IF(ISBLANK(AJ18),1,0)","v":1},"実施1年目入所予定児童5歳児"]
[" 〇保育士等配置に係る法人の考え方（保育士等の雇用確保の方法を含む）",null,null,null,null,null,null,null,null,null,null,null,null,null,null,null,null,null,null,null,null,null,null,null,null,null,null,null,null,null,null,null,null,null,null,null,null,null,null,null,null,null,null,null,null,null,null,null,null,{"$f":"IF(ISBLANK(M22),1,0)","v":1},"実施1年目休けい保育士"]
[null,null,null,null,null,null,null,null,null,null,null,null,null,null,null,null,null,null,null,null,null,null,null,null,null,null,null,null,null,null,null,null,null,null,null,null,null,null,null,null,null,null,null,"配置基準を上回る配置を、現員数・退職予定者数・新規採用予定者数（確保の方法も）を勘案すると実現できることなど、を記載。",null,null,null,null,null,{"$f":"IF(ISBLANK(U22),1,0)","v":1},"実施1年目標準間認定保育士"]
[null,null,null,null,null,null,null,null,null,null,null,null,null,null,null,null,null,null,null,null,null,null,null,null,null,null,null,null,null,null,null,null,null,null,null,null,null,null,null,null,null,null,null,null,null,null,null,null,null,{"$f":"IF(ISBLANK(AC22),1,0)","v":1},"実施1年目主任保育士専任加算"]
[null,null,null,null,null,null,null,null,null,null,null,null,null,null,null,null,null,null,null,null,null,null,null,null,null,null,null,null,null,null,null,null,null,null,null,null,null,null,null,null,null,null,null,null,null,null,null,null,null,null,"□にレがついているか"]
[null,null,null,null,null,null,null,null,null,null,null,null,null,null,null,null,null,null,null,null,null,null,null,null,null,null,null,null,null,null,null,null,null,null,null,null,null,null,null,null,null,null,null,null,null,null,null,null,null,{"$f":"IF(ISBLANK(AC24),1,0)","v":1},"実施1年目　保育士確保に係る法人の考え方"]
["●実施２年目",null,null,null,null,null,null,"（",{"$f":"'様式第1号 実施計画書'!Q29","v":""},null,null,{"$f":"'様式第1号 実施計画書'!T29","v":""},null,"年度　）",null,null,null,null,null,null,null,"実施期間が１年間の場合は、記入は不要です。",null,null,null,null,null,null,null,null,null,null,null,null,null,null,null,null,null,null,null,null,null,null,null,null,null,null,null,{"$f":"IF(ISBLANK(L37),1,0)","v":1},"実施2年目0歳児面積"]
[" 〇保育室等の活用計画",null,null,null,null,null,null,null,null,null,null,null,null,null,null,null,null,null,null,null,null,null,null,null,null,null,null,null,null,null,null,null,null,null,null,null,null,null,null,null,null,null,null,null,null,null,null,null,null,{"$f":"IF(ISBLANK(P37),1,0)","v":1},"実施2年目1歳児面積"]
[null,null,null,null,null,null,null,null,null,null,null,"０歳",null,null,null,"１歳",null,null,null,"２歳",null,null,null,null,null,null,null,"３歳",null,null,null,"４歳",null,null,null,"５歳",null,null,null,"計",null,null,null,null,null,null,null,null,null,{"$f":"IF(ISBLANK(T37),1,0)","v":1},"実施2年目2歳児面積"]
[null,null,null,null,null,null,null,null,null,null,null,null,null,null,null,null,null,null,null,"右記以外",null,null,null,"期間限定",null,null,null,null,null,null,null,null,null,null,null,null,null,null,null,null,null,null,null,null,null,null,null,null,null,{"$f":"IF(ISBLANK(X37),1,0)","v":1},"実施2年目2歳児面積"]
["①","保育室面積",null,null,null,null,null,null,null,null,null,null,null,null,"㎡",null,null,null,"㎡",null,null,null,"㎡",null,null,null,"㎡",null,null,null,"㎡",null,null,null,"㎡",null,null,null,"㎡",{"$f":"SUM(L37:AL37)","v":0},null,null,"㎡",null,null,null,null,null,null,{"$f":"IF(ISBLANK(AB37),1,0)","v":1},"実施2年目3歳児面積"]
["②","保育室の設置階",null,null,null,null,null,null,null,null,null,null,null,null,"階",null,null,null,"階",null,null,null,"階",null,null,null,"階",null,null,null,"階",null,null,null,"階",null,null,null,"階",null,null,null,null,null,null,null,null,null,null,{"$f":"IF(ISBLANK(AF37),1,0)","v":1},"実施2年目4歳児面積"]
["③","期間限定保育実施に\nよる変更後の認可定員",null,null,null,null,null,null,null,null,null,null,null,null,"人",null,null,null,"人",null,null,null,"人",{"$f":"T9","v":0},null,null,"人",null,null,null,"人",null,null,null,"人",null,null,null,"人",{"$f":"SUM(L39:AL39)","v":0},null,null,"人",null,null,null,null,null,null,{"$f":"IF(ISBLANK(AJ37),1,0)","v":1},"実施2年目5歳児面積"]
[null,null,null,null,null,null,null,null,null,null,null,null,null,null,null,null,null,null,null,null,null,null,null,null,null,null,null,null,null,null,null,null,null,null,null,null,null,null,null,null,null,null,null,null,null,null,null,null,null,{"$f":"IF(ISBLANK(L38),1,0)","v":1},"実施2年目保育室の設置階0歳児"]
["参考","定員上限（最大）\n①÷上段の児童１人あたりの面積",null,null,null,null,null,null,null,null,null,"5.0㎡／人",null,null,null,"3.3㎡／人",null,null,null,"1.98㎡／人",null,null,null,null,null,null,null,null,null,null,null,null,null,null,null,null,null,null,null,null,null,null,null,null,null,null,null,null,null,{"$f":"IF(ISBLANK(P38),1,0)","v":1},"実施2年目保育室の設置階1歳児"]
[null,null,null,null,null,null,null,null,null,null,null,null,null,null,"人",null,null,null,"人",null,null,null,"人",null,null,null,"人",null,null,null,"人",null,null,null,"人",null,null,null,"人",{"$f":"SUM(L42:AL42)","v":0},null,null,"人",null,null,null,null,null,null,{"$f":"IF(ISBLANK(T38),1,0)","v":1},"実施2年目保育室の設置階2歳児"]
[null,"面積基準緩和を適用した\n場合の定員上限（最大）\n①÷上段の児童１人あたりの面積",null,null,null,null,null,null,null,null,null,"1.65㎡／人",null,null,null,null,null,null,null,null,null,null,null,null,null,null,null,null,null,null,null,null,null,null,null,null,null,null,null,null,null,null,null,null,null,null,null,null,null,{"$f":"IF(ISBLANK(X38),1,0)","v":1},"実施2年目保育室の設置階2歳児（期間限定）"]
[null,null,null,null,null,null,null,null,null,null,null,null,null,null,"人",null,null,null,"人",null,null,null,"人",null,null,null,"人",null,null,null,"人",null,null,null,"人",null,null,null,"人",{"$f":"SUM(L44:AL44)","v":0},null,null,"人",null,null,null,null,null,null,{"$f":"IF(ISBLANK(AB38),1,0)","v":1},"実施2年目保育室の設置階3歳児"]
[null,null,null,null,null,null,null,null,null,null,null,null,null,null,null,null,null,null,null,null,null,null,null,null,null,null,null,null,null,null,null,null,null,null,null,null,null,null,null,null,null,null,null,null,null,null,null,null,null,{"$f":"IF(ISBLANK(AF38),1,0)","v":1},"実施2年目保育室の設置階4歳児"]
[" 〇保育士等配置基準        ※　入所予定児童数は、進級やこれまでの新規入所や申込みの状況等を勘案して計画を立ててください。",null,null,null,null,null,null,null,null,null,null,null,null,null,null,null,null,null,null,null,null,null,null,null,null,null,null,null,null,null,null,null,null,null,null,null,null,null,null,null,null,null,null,null,null,null,null,null,null,{"$f":"IF(ISBLANK(AJ39),1,0)","v":1},"実施2年目保育室の設置階5歳児"]
[null,null,null,null,null,null,null,null,null,null,null,"０歳",null,null,null,"１歳",null,null,null,"２歳(期間限定含む)",null,null,null,null,null,null,null,"３歳",null,null,null,"４歳",null,null,null,"５歳",null,null,null,"計",null,null,null,null,null,null,null,null,null,{"$f":"IF(ISBLANK(L39),1,0)","v":1},"実施2年目認可定員0歳"]
["④","入所予定児童数※",null,null,null,null,null,null,null,null,null,null,null,null,"人",null,null,null,"人",null,null,null,null,null,"人",null,null,null,null,null,"人",null,null,null,"人",null,null,null,"人",{"$f":"L48+P48+V48+AB48+AF48+AJ48","v":0},null,null,"人",null,null,null,null,null,null,{"$f":"IF(ISBLANK(P39),1,0)","v":1},"実施2年目認可定員1歳"]
["⑤","保育士等配置基準数\n(歳児毎)",null,null,null,null,null,null,null,null,null,{"$f":"ROUNDDOWN(L48/3,1)","v":0},null,null,"人",{"$f":"ROUNDDOWN(P48/6,1)","v":0},null,null,"人",null,null,{"$f":"ROUNDDOWN(V48/6,1)","v":0},null,null,"人",null,null,{"$f":"ROUNDDOWN(AB48/20,1)","v":0},null,null,"人",{"$f":"ROUNDDOWN(AF48/30,1)","v":0},null,null,"人",{"$f":"ROUNDDOWN(AJ48/30,1)","v":0},null,null,"人",{"$f":"ROUND(SUM(L49:AL49),0)","v":0},null,null,"人",null,null,null,null,null,null,{"$f":"IF(ISBLANK(T39),1,0)","v":1},"実施2年目認可定員2歳"]
[null,null,null,null,null,null,null,null,null,null,null,null,null,null,null,null,null,null,null,null,null,null,null,null,null,null,null,null,null,null,null,null,null,null,null,null,null,null,null,null,null,null,null,null,null,null,null,null,null,{"$f":"IF(ISBLANK(AB39),1,0)","v":1},"実施2年目認可定員3歳"]
[null,"保育士等配置基準数\n(歳児毎)",null,null,null,null,null,null,null,null,"休けい保育士等\n(定員90人以下の場合)",null,null,null,null,null,null,null,"標準時間認定の児童\nを受け入れる場合",null,null,null,null,null,null,null,null,null,null,null,null,null,null,null,"合  計",null,null,null,null,null,null,null,null,null,null,null,null,null,null,{"$f":"IF(ISBLANK(AF39),1,0)","v":1},"実施2年目認可定員4歳"]
[null,null,null,{"$f":"AN49","v":0},null,null,null,"人",null,null,null,null,null,null,null,"人",null,null,null,null,null,null,null,"人",null,null,null,null,null,null,null,"人",null,null,null,null,{"$f":"D52+M52+U52+AC52","v":0},null,null,"人",null,null,null,null,null,null,null,null,null,{"$f":"IF(ISBLANK(AJ39),1,0)","v":1},"実施2年目認可定員5歳"]
[null,null,null,null,null,null,null,null,null,null,null,null,null,null,null,null,null,null,null,null,null,null,null,null,null,null,null,null,null,null,null,null,null,null,null,null,null,null,null,null,null,null,null,null,null,null,null,null,null,{"$f":"IF(ISBLANK(L48),1,0)","v":1},"実施2年目入所予定児童0歳児"]
[null,"次の□にレ印をつけてください。",null,null,null,null,null,null,null,null,null,null,null,null,null,null,null,null,null,null,null,null,null,null,null,null,null,null,null,null,null,null,null,null,null,null,null,null,null,null,null,null,null,null,null,null,null,null,null,{"$f":"IF(ISBLANK(P48),1,0)","v":1},"実施2年目入所予定児童1歳児"]
[null,null,null,"上記の保育士等配置基準のほか、補助事業にあたっては補助要綱等に定める保育士等配置基準、また",null,null,null,null,null,null,null,null,null,null,null,null,null,null,null,null,null,null,null,null,null,null,null,null,null,null,null,null,null,null,null,null,null,null,null,null,null,null,null,null,null,null,null,null,null,{"$f":"IF(ISBLANK(V48),1,0)","v":1},"実施2年目入所予定児童2歳児"]
[null,null,null,"保育士等以外の看護師、調理員等、保育にかかる全ての職員配置基準を遵守します。",null,null,null,null,null,null,null,null,null,null,null,null,null,null,null,null,null,null,null,null,null,null,null,null,null,null,null,null,null,null,null,null,null,null,null,null,null,null,null,null,null,null,null,null,null,{"$f":"IF(ISBLANK(AB48),1,0)","v":1},"実施2年目入所予定児童3歳児"]
[null,null,null,null,null,null,null,null,null,null,null,null,null,null,null,null,null,null,null,null,null,null,null,null,null,null,null,null,null,null,null,null,null,null,null,null,null,null,null,null,null,null,null,null,null,null,null,null,null,{"$f":"IF(ISBLANK(AF48),1,0)","v":1},"実施2年目入所予定児童4歳児"]
[" 〇保育士等配置に係る法人の考え方（保育士等の雇用確保の方法を含む）",null,null,null,null,null,null,null,null,null,null,null,null,null,null,null,null,null,null,null,null,null,null,null,null,null,null,null,null,null,null,null,null,null,null,null,null,null,null,null,null,null,null,null,null,null,null,null,null,{"$f":"IF(ISBLANK(AJ48),1,0)","v":1},"実施2年目入所予定児童5歳児"]
[null,null,null,null,null,null,null,null,null,null,null,null,null,null,null,null,null,null,null,null,null,null,null,null,null,null,null,null,null,null,null,null,null,null,null,null,null,null,null,null,null,null,null,null,null,null,null,null,null,{"$f":"IF(ISBLANK(M52),1,0)","v":1},"実施2年目休けい保育士"]
[null,null,null,null,null,null,null,null,null,null,null,null,null,null,null,null,null,null,null,null,null,null,null,null,null,null,null,null,null,null,null,null,null,null,null,null,null,null,null,null,null,null,null,null,null,null,null,null,null,{"$f":"IF(ISBLANK(U52),1,0)","v":1},"実施2年目標準間認定保育士"]
[null,null,null,null,null,null,null,null,null,null,null,null,null,null,null,null,null,null,null,null,null,null,null,null,null,null,null,null,null,null,null,null,null,null,null,null,null,null,null,null,null,null,null,null,null,null,null,null,null,{"$f":"IF(ISBLANK(AC52),1,0)","v":1},"実施2年目主任保育士専任加算"]
[null,null,null,null,null,null,null,null,null,null,null,null,null,null,null,null,null,null,null,null,null,null,null,null,null,null,null,null,null,null,null,null,null,null,null,null,null,null,null,null,null,null,null,null,null,null,null,null,null,{"$f":"IF(ISBLANK(B59),1,0)","v":1},"実施２年目　保育士確保に係る法人の考え方"]
[]
[]
[]
[]
[]
["入力内容の整合性を確認",null,null,null,null,null,null,null,null,null,null,null,"エラーだと”１”になる",null,null,null,null,null,null,null,null,null,null,null,null,"入力内容の確認の参考にしてください"]
[]
["○実施１年目"]
[]
[null,"チェック１.保育室面積合計",null,null,null,null,null,null,null,null,null,null,null,null,null,null,null,null,"チェック２.認可定員が面積基準を満たしているか"]
[null,null,"別紙の面積と一致しているか",null,null,null,null,null,null,null,null,null,null,null,null,null,null,null,null,null,null,null,null,null,null,null,null,null,null,0,1,"1'",2,3,4,5]
[null,null,null,null,null,null,null,null,null,null,null,{"$f":"IF(AN7=' 別紙 '!$AJ$5,0,1)","v":0},null,null,null,null,null,null,null,"面積緩和を使用しない場合",null,null,null,null,null,null,null,null,null,{"$f":"IF($L$9<=$L$12,0,1)","v":0},{"$f":"IF($P$9<=$P$12,0,1)","v":0},{"$f":"IF($T$9<=$T$12,0,1)","v":0},{"$f":"IF($X$9<=$X$12,0,1)","v":0},{"$f":"IF($AB$9<=$AB$12,0,1)","v":0},{"$f":"IF($AF$9<=$AF$12,0,1)","v":0},{"$f":"IF($AJ$9<=$AJ$12,0,1)","v":0},"←ここで１があっても、面積緩和を使えれば問題ない"]
[null,null,null,null,null,null,null,null,null,null,null,null,null,null,null,null,null,null,null,"面積緩和を使用する場合",null,null,null,null,null,null,null,null,null,{"$f":"IF($L$9<=$L$14,0,1)","v":0},{"$f":"IF($P$9<=$P$14,0,1)","v":0},{"$f":"IF($T$9<=$T$14,0,1)","v":0},{"$f":"IF($X$9<=$X$14,0,1)","v":0},{"$f":"IF($AB$9<=$AB$14,0,1)","v":0},{"$f":"IF($AF$9<=$AF$14,0,1)","v":0},{"$f":"IF($AJ$9<=$AJ$14,0,1)","v":0},"←ここに１があれば、定員をチェック"]
[]
[null,"チェック３.入所児童数が認可定員以内か"]
[null,null,null,null,null,null,null,null,null,0,1,2,3,4,5]
[null,null,null,null,null,null,null,null,null,{"$f":"IF($L$18<=$L$9,0,1)","v":0},{"$f":"IF($R$18<=SUM($P$9,$T$9),0,1)","v":0},{"$f":"IF($X$18<=$X$9,0,1)","v":0},{"$f":"IF($AB$18<=$AB$9,0,1)","v":0},{"$f":"IF($AF$18<=$AF$9,0,1)","v":0},{"$f":"IF($AJ$18<=$AJ$9,0,1)","v":0}]
[]
[]
["○実施２年目"]
[]
[null,"チェック4.保育室面積合計",null,null,null,null,null,null,null,null,null,null,null,null,null,null,null,null,"チェック5.認可定員が面積基準を満たしているか"]
[null,null,"別紙の面積と一致しているか",null,null,null,null,null,null,null,null,null,null,null,null,null,null,null,null,null,null,null,null,null,null,null,null,null,null,0,1,2,"2'",3,4,5]
[null,null,null,null,null,null,null,null,null,null,null,{"$f":"IF(AN37=' 別紙 '!$AJ$5,0,1)","v":0},null,null,null,null,null,null,null,"面積緩和を使用しない場合",null,null,null,null,null,null,null,null,null,{"$f":"IF($L$39<=$L$42,0,1)","v":0},{"$f":"IF($P$39<=$P$42,0,1)","v":0},{"$f":"IF($T$39<=$T$42,0,1)","v":0},{"$f":"IF($X$39<=$X$42,0,1)","v":0},{"$f":"IF($AB$39<=$AB$42,0,1)","v":0},{"$f":"IF($AF$39<=$AF$42,0,1)","v":0},{"$f":"IF($AJ$39<=$AJ$42,0,1)","v":0},"←ここで１があっても、面積緩和を使えれば問題ない"]
[null,null,null,null,null,null,null,null,null,null,null,null,null,null,null,null,null,null,null,"面積緩和を使用する場合",null,null,null,null,null,null,null,null,null,{"$f":"IF($L$39<=$L$44,0,1)","v":0},{"$f":"IF($P$39<=$P$44,0,1)","v":0},{"$f":"IF(SUM(T39:Z39)<=$V$44,0,1)","v":0},{"$f":"IF(SUM($X$39)<=$X$44,0,1)","v":0},{"$f":"IF($AB$39<=$AB$44,0,1)","v":0},{"$f":"IF($AF$39<=$AF$44,0,1)","v":0},{"$f":"IF($AJ$39<=$AJ$44,0,1)","v":0},"←ここに１があれば、定員をチェック"]
[]
[null,"チェック6.入所児童数が認可定員以下か",null,null,null,null,null,null,null,null,null,null,null,null,null,null,null,null,"チェック7.入所1年目の児童が年齢進行できているか"]
[null,null,null,null,null,null,null,null,null,0,1,2,3,4,5,null,null,null,null,null,null,null,0,1,2,3,4,5]
[null,null,null,null,null,null,null,null,null,{"$f":"IF($L$48<=$L$39,0,1)","v":0},{"$f":"IF($P$48<=$P$39,0,1)","v":0},{"$f":"IF(V48<=SUM(T39:Z39),0,1)","v":0},{"$f":"IF($AB$48<=$AB$39,0,1)","v":0},{"$f":"IF($AF$48<=$AF$39,0,1)","v":0},{"$f":"IF($AJ$48<=$AJ$39,0,1)","v":0},null,null,null,null,null,null,null,null,{"$f":"IF($P$48>=$L$18,0,1)","v":0},{"$f":"IF($V$48>=$R$18,0,1)","v":0},{"$f":"IF($AB$48>=$X$18,0,1)","v":0},{"$f":"IF($AF$48>=$AB$18,0,1)","v":0},{"$f":"IF($AJ$48>=$AF$18,0,1)","v":0}]
[]
[]
[null,"主任保育士専任加算を受ける場合"]
[]
[null,"主幹保育教諭等を専任化させるための代替保育教諭等"]